Workbook

Sheet Inicio
B2: Servicio de Telefonía Fija
B3: Planes Tarifarios
B8: Fecha de publicación: junio de 2013
C15: En los planes tarifarios se encuentran detalladas las tarifas que los operadores van a cobrar a sus usuarios por cada uno de los servicios de telecomunicaciones.
C17: Los operadores podrán establecer o modificar libremente las tarifas a los abonados por los servicios que prestan, de forma que se asegure la operación y prestación eficiente, conla debida calidad.
C19: Las tarifas serán reguladas por el CONATEL cuando existan distorsiones en le mercado.
C21: 1. Tabla Resumen y Comparativa de las tarifas de todas las empresas
C22: 2. Plan Tarifario de CNT E.P.
C23: 3. Plan Tarifario de Etapa E.P.
C24: 4. Plan Tarifario de Linkotel S.A.
C25: 5. Plan Tarifario de Setel S.A.
C26: 6. Plan Tarifario de Ecuadortelecom S.A.
C27: 7. Plan Tarifario de Level 3 Ecuador S.A.

Sheet Resumen
A2: Servicio de Telefonía Fija
A3: Planes Tarifarios
A8: =+Inicio!B8 -> Fecha de publicación: junio de 2013
C13: CNT E.P. | D13: Etapa E.P. | E13: Setel S.A. | F13: Linkotel S.A. | G13: Ecuadortelecom S.A. | H13: Level 3 Ecuador S.A.
A14: LOCAL | B14: Categoría A | C14: 0.0023 | D14: 0.002 | H14: 0.019
B15: Categoría B | C15: 0.01 | D15: 0.005 | E15: 0.01 | F15: 0.0185 | G15: 0.01 | H15: 0.019
B16: Residencial Off Net | C16: 0.017
B17: Categoría C | C17: 0.024 | D17: 0.022 | E17: 0.022 | F17: 0.0185 | G17: 0.02 | H17: 0.025
B18: Comercial Off Net | C18: 0.028
A19: NACIONAL | B19: Categoría A | C19: 0.006 | H19: 0.02
B20: Categoría B | C20: 0.02 | E20: 0.022 | F20: 0.035 | G20: 0.02 | H20: 0.04
B21: Residencial Off Net | C21: 0.04
B22: Categoría C | C22: 0.056 | E22: 0.09 | F22: 0.08 | G22: 0.02 | H22: 0.025
B23: Comercial Off Net | C23: 0.0112
A25: GRÁFICO 1.- COMPARATIVO POR EMPRESA
C27: LOCAL | E27: NACIONAL
B28: Empresa | C28: Residencial Local | D28: Comercial Local | E28: Residencial Nacional | F28: Comercial Nacional | G28: Promedio
B29: CNT E.P. | C29: 0.01 | D29: 0.024 | E29: 0.02 | F29: 0.056 | G29: 0.0275
B30: Etapa E.P. | C30: 0.005 | D30: 0.022 | E30: 0 | F30: 0 | G30: 0.00675
B31: Setel S.A. | C31: 0.01 | D31: 0.022 | E31: 0.022 | F31: 0.09 | G31: 0.036
B32: Linkotel S.A. | C32: 0.0185 | D32: 0.0185 | E32: 0.035 | F32: 0.08 | G32: 0.038
B33: Ecuadortelecom S.A. | C33: 0.01 | D33: 0.02 | E33: 0.02 | F33: 0.02 | G33: 0.0175
B34: Level 3 Ecuador S.A. | C34: 0.019 | D34: 0.025 | E34: 0.04 | F34: 0.025 | G34: 0.02725
A36: * Tarifas no incluyen impuestos ni cargos de interconexión
A38: GRÁFICO 2.- COMPARATIVO POR CATEGORÍA
C40: CNT E.P. | D40: Etapa EP. | E40: Setel S.A. | F40: Linkotel S.A. | G40: Ecuadortelecom S.A. | H40: Level 3 Ecuador S.A. | I40: Promedio
B41: Residencial Local | C41: 0.01 | D41: 0.005 | E41: 0.01 | F41: 0.0185 | G41: 0.01 | H41: 0.019 | I41: 0.01208333333
B42: Comercial Local | C42: 0.024 | D42: 0.022 | E42: 0.022 | F42: 0.0185 | G42: 0.02 | H42: 0.025 | I42: 0.02191666667
B43: Residencial Nacional | C43: 0.02 | D43: 0 | E43: 0.022 | F43: 0.035 | G43: 0.02 | H43: 0.04 | I43: 0.02283333333
B44: Comercial Nacional | C44: 0.056 | D44: 0 | E44: 0.09 | F44: 0.08 | G44: 0.02 | H44: 0.025 | I44: 0.04516666667
A46: * Tarifas no incluyen impuestos ni cargos de interconexión
A48: GRÁFICO 3.- COMPARATIVO DE PENSIÓN BÁSICA
C50: CNT E.P. | D50: Etapa EP. | E50: Setel S.A. | F50: Linkotel S.A. | G50: Ecuadortelecom S.A. | H50: Level 3 Ecuador S.A.
A51: Pensión Básica Mensual | B51: Categoría A | C51: 0.93 | D51: 0.8 | H51: 5.7
B52: Residencial | C52: 6.2 | D52: 3.59 | E52: 9 | F52: 7.48 | G52: 5.99 | H52: 8.5
B53: Comercial | C53: 12 | D53: 9.99 | E53: 12 | F53: 11.38 | G53: 12
A55: * Tarifas no incluyen impuestos ni cargos de interconexión
A57: GRÁFICO 4.- COMPARATIVO TARIFAS FIJO- MÓVIL
C60: 2006 | D60: 2007 | E60: 2008 | F60: 2009 | G60: 2010 | H60: 2011 | I60: 2012 | J60: 2013 (jun.)
B61: CNT E.P. | C61: 0.17 | D61: 0.14 | E61: 0.14 | F61: 0.14 | G61: 0.14 | H61: 0.12 | I61: 0.12 | J61: 0.04
B62: Etapa E.P. | C62: 0.17 | D62: 0.17 | E62: 0.14 | F62: 0.14 | G62: 0.14 | H62: 0.14 | I62: 0.14 | J62: 0.14
B63: Setel S.A. | C63: 0.25 | D63: 0.25 | E63: 0.25 | F63: 0.25 | G63: 0.25 | H63: 0.25 | I63: 0.135 | J63: 0.135
B64: Linkotel S.A. | C64: 0.29 | D64: 0.29 | E64: 0.29 | F64: 0.29 | G64: 0.29 | H64: 0.18 | I64: 0.18 | J64: 0.18
B65: Ecuadortelecom S.A. | D65: 0.15 | E65: 0.14 | F65: 0.14 | G65: 0.14 | H65: 0.135 | I65: 0.135 | J65: 0.135
B66: Level 3 Ecuador S.A. | H66: 0.125 | I66: 0.125 | J66: 0.125
B67: Promedio | C67: 0.22 | D67: 0.2 | E67: 0.192 | F67: 0.192 | G67: 0.192 | H67: 0.1583333333 | I67: 0.1391666667 | J67: 0.1258333333
A68: * Tarifas no incluyen impuestos
A69: 1/- Tarifa CNT EP., 2013 (mayo) solo pa llamadas a CNT EP. Móvil, a otras operadoras móviles USD 0,15
A71: GRÁFICO 5.- Derecho de Inscripción Promedio Residencial Fijo
D73: Años | E73: Valor USD
D74: 2000 | E74: 75.07583914
D75: 2001 | E75: 63.66903093
D76: 2002 | E76: 61.57726199
D77: 2003 | E77: 67.5658493
D78: 2004 | E78: 75.97416304
D79: 2005 | E79: 70.08391275
D80: 2006 | E80: 73.24253059
D81: 2007 | E81: 79.50427851
D82: 2008 | E82: 81.42647643
D83: 2009 | E83: 65.83227188
D84: 2010 | E84: 69.9668287
D85: 2011 | E85: 69.57900859
D86: 2012 | E86: 65.63782251
D87: 2013-01-01 | E87: 66.37255166
D88: 2013-02-01 | E88: 66.79080833
D89: 2013-03-01 | E89: 67.82089096
D90: 2013-04-01 | E90: 60.88948845
D91: 2013-05-01 | E91: 66.68749229
D92: 2013-06-01 | E92: =+[1]Hoja1!$J$4 -> 66.27756447
A94: Nota: Para el cálculo de Derecho de Inscripción Promedio Residencial Fijo se realizó un promedio ponderado de la tarifa de derecho de inscripción de cada una de las empresas de telefonía fija con el número de abonados residenciales. Se ha ido incluyéndo a las empresas nuevas desde el inicio de su operación: Linkotel desde 2004 y Setel, Ecuadortelecom y Etapatelecom desde 2006; Level 3 Ecuador S.A. desde 2008.
A95: La variación de estos valores en algunos casos se ve reflejada por el incremento porcentual significativo del número de usuarios (sobre todo en las nuevas operadoras) aún cuando los costos que ofrecen cada una de éstas siguen siendo los mismos.
A96: El valor de mayo de 2013 del Derecho de Inscripción Promedio Residencial Fijo, está determinado en base a los reportes mensuales de junio todas las prestadoras, a excepción de Linkotel S.A. y Grupocoripar S.A., que corresponde al mes de mayo de 2013
A98: GRÁFICO 5.- Tarifa llamada local residencial Fija (3 minutos Promedio)
D100: Años | E100: Valor USD
D101: 2000 | E101: 0.01441278642
D102: 2001 | E102: 0.02880845735
D103: 2002 | E103: 0.02864381635
D104: 2003 | E104: 0.02894179731
D105: 2004 | E105: 0.02894121229
D106: 2005 | E106: 0.02995358976
D107: 2006 | E107: 0.03015074429
D108: 2007 | E108: 0.03222595585
D109: 2008 | E109: 0.02751520216
D110: 2009 | E110: 0.0295
D111: 2010 | E111: 0.0296
D112: 2011 | E112: 0.02936828709
D113: 2012 | E113: 0.02921298663
D114: 2013-01-01 | E114: 0.02923031803
D115: 2013-02-01 | E115: 0.02918185234
D116: 2013-03-01 | E116: 0.02913673266
D117: 2013-04-01 | E117: 0.02905630856
D118: 2013-05-01 | E118: 0.02933972344
D119: 2013-06-01 | E119: =+[1]Hoja1!$J$5 -> 0.02936657992
A121: Nota: Para el cálculo de la Tarifa de una llamada Local Residencial Fija de tres minutos se realizó un promedio ponderado de la tarifa local residencial de cada una de las empresas de telefonía fija con el número de abonados residenciales Se ha ido incluyéndo a las empresas nuevas desde el inicio de su operación: Linkotel desde 2004 y Setel, Ecuadortelecom y Etapatelecom desde 2006 y Level 3 Ecuador S.A.
A122: La variación de estos valores en algunos casos se ve reflejada por el incremento porcentual significativo del número de usuarios (sobretodo en las nuevas operadoras) aún cuando los costos que ofrecen cada una de éstas siguen siendo los mismos.
A123: El valor de mayo de 2013 de la Tarifa de una llamada local residencial Fija, está determinado en base a los reportes mensuales de junio de todas las prestadoras, a excepción de Linkotel S.A., y Linkotel S.A., que corresponde al mes de mayo de 2013.
A125: Notas:
A127: 1. No se incluye valor de los impuestos
A128: 2. * ETAPA E.P. tiene tres valores de Pensión Básica para la Categoría B, según el rango de consumo del cliente. Aquí se ha señalado un promedio de estos tres valores.

Sheet CNT E.P.
B2: Servicio de Telefonía Fija
B3: Plan Tarifario CNT E.P.
B8: =+Inicio!B8 -> Fecha de publicación: junio de 2013
D12: ANDINATEL S.A. | M12: CNT E.P.
B13: SERVICIO | C13: Medición | D13: 2000 | E13: 2001 | F13: 2002 | G13: 2003 | H13: 2004 | I13: 2005 | J13: 2006 | K13: 2007 | L13: 2008 | M13: 2009 | N13: 2010 | O13: 2011 | P13: 2012 | Q13: 2013*
B14: I TELEFONÍA BÁSICA
B15: 1. DERECHO DE INSCRIPCIÓN
B16: CATEGORIA A | D16: 32 | E16: 30 | F16: 30 | G16: 30 | H16: 30 | I16: 30 | J16: 30 | K16: 30 | L16: 30 | M16: 30 | N16: 30 | O16: 30 | P16: 30 | Q16: 30
B17: CATEGORIA B | D17: 64 | E17: 60 | F17: 60 | G17: 60 | H17: 60 | I17: 60 | J17: 60 | K17: 60 | L17: 60 | M17: 60 | N17: 60 | O17: 60 | P17: 60 | Q17: 60
B18: CATEGORIA C | D18: 140 | E18: 60 | F18: 60 | G18: 60 | H18: 60 | I18: 60 | J18: 60 | K18: 60 | L18: 60 | M18: 60 | N18: 60 | O18: 60 | P18: 60 | Q18: 60
B19: 2. PENSIÓN BÁSICA | C19: (Mensual)
B20: CATEGORIA A | D20: 0.8 | E20: 0.93 | F20: 0.93 | G20: 0.93 | H20: 0.93 | I20: 0.93 | J20: 0.93 | K20: 0.93 | L20: 0.93 | M20: 0.93 | N20: 0.93 | O20: 0.93 | P20: 3 | Q20: 3
B21: CATEGORIA B | D21: 2 | E21: 6.2 | F21: 6.2 | G21: 6.2 | H21: 6.2 | I21: 6.2 | J21: 6.2 | K21: 6.2 | L21: 6.2 | M21: 6.2 | N21: 6.2 | O21: 6.2 | P21: 6.2 | Q21: 6.2
B22: CATEGORIA C | D22: 4 | E22: 12 | F22: 12 | G22: 12 | H22: 12 | I22: 12 | J22: 12 | K22: 12 | L22: 12 | M22: 12 | N22: 12 | O22: 12 | P22: 12 | Q22: 12
B23: 3. TARIFAS DE USO AUTOMÁTICO | C23: (Por Minuto)
B24: 3.1 USO LOCAL
B25: CATEGORIA A | D25: 0.002 | E25: 0.0023 | F25: 0.0023 | G25: 0.0023 | H25: 0.0023 | I25: 0.0023 | J25: 0.0023 | K25: 0.0023 | L25: 0.0023 | M25: 0.0023 | N25: 0.0023 | O25: 0.0023
B26: Plan Social On Net | P26: 0.008 | Q26: 0.008
B27: Plan Social OFF Net | P27: 0.028 | Q27: 0.028
B28: CATEGORIA B | D28: 0.002 | E28: 0.01 | F28: 0.01 | G28: 0.01 | H28: 0.01 | I28: 0.01 | J28: 0.01 | K28: 0.01 | L28: 0.01 | M28: 0.01 | N28: 0.01 | O28: 0.01
B29: Plan Residencial On Net | P29: 0.01 | Q29: 0.01
B30: Plan Residencial Off Net | P30: 0.017 | Q30: 0.017
B31: CATEGORIA C | D31: 0.01 | E31: 0.024 | F31: 0.024 | G31: 0.024 | H31: 0.024 | I31: 0.024 | J31: 0.024 | K31: 0.024 | L31: 0.024 | M31: 0.024 | N31: 0.024 | O31: 0.024
B32: Plan Comercial On Net | P32: 0.024 | Q32: 0.024
B33: Plan Comercial Off Net | N33: 0.028 | O33: 0.028 | P33: 0.028 | Q33: 0.028
B34: 3.2 USO DE LARGA DISTANCIA REGIONAL | C34: (Por Minuto)
B35: CATEGORIA A | D35: 0.004 | E35: 0.006 | F35: 0.006 | G35: 0.006 | H35: 0.006 | I35: 0.006 | J35: 0.006 | K35: 0.006 | L35: 0.006 | M35: 0.006 | N35: 0.006 | O35: 0.006
B36: CATEGORIA B | D36: 0.004 | E36: 0.02 | F36: 0.02 | G36: 0.02 | H36: 0.02 | I36: 0.02 | J36: 0.02 | K36: 0.02 | L36: 0.02 | M36: 0.02 | N36: 0.02 | O36: 0.02
B37: CATEGORIA C | D37: 0.02 | E37: 0.056 | F37: 0.056 | G37: 0.056 | H37: 0.056 | I37: 0.056 | J37: 0.056 | K37: 0.056 | L37: 0.056 | M37: 0.056 | N37: 0.056 | O37: 0.056
B38: 3.3 USO DE LARGA DISTANCIA NACIONAL | C38: (Por Minuto)
B39: CATEGORIA A | D39: 0.008 | E39: 0.0093 | F39: 0.0093 | G39: 0.0093 | H39: 0.0093 | I39: 0.0093 | J39: 0.0093 | K39: 0.0093 | L39: 0.0093 | M39: 0.0093 | N39: 0.006 | O39: 0.006
B40: Plan Social On Net | P40: 0.008 | Q40: 0.008
B41: Plan Social OFF Net | P41: 0.028 | Q41: 0.028
B42: CATEGORIA B | D42: 0.008 | E42: 0.04 | F42: 0.04 | G42: 0.04 | H42: 0.04 | I42: 0.04 | J42: 0.04 | K42: 0.04 | L42: 0.04 | M42: 0.04 | N42: 0.02 | O42: 0.02
B43: Plan Residencial On Net | P43: 0.02 | Q43: 0.02
B44: Plan Residencial Off Net | P44: 0.04 | Q44: 0.04
B45: CATEGORIA C | D45: 0.04 | E45: 0.112 | F45: 0.112 | G45: 0.112 | H45: 0.112 | I45: 0.112 | J45: 0.112 | K45: 0.112 | L45: 0.112 | M45: 0.112 | N45: 0.056 | O45: 0.056
B46: Plan Comercial On Net | P46: 0.056 | Q46: 0.056
B47: Plan Comercial Off Net | P47: 0.112 | Q47: 0.112
B48: 3.4 USO HACIA CELULAR | C48: (Por Minuto)
B49: CATEGORIAS A, B y C | D49: 0.29 | E49: 0.29 | F49: 0.29 | G49: 0.29 | H49: 0.2 | I49: 0.17 | J49: 0.17
B50: OTECEL y CONECEL | K50: 0.145 | L50: 0.145 | M50: 0.145 | N50: 0.145 | O50: 0.145 | P50: 0.145 | Q50: 0.145
B51: Plan Residencial Off Net Nacional Móviles (Claro y Movistar) | P51: 0.145 | Q51: 0.145
B52: Plan Comercial Off Net Nacional Móviles (Claro y Movistar) | P52: 0.145 | Q52: 0.145
B53: TELECSA | K53: 0.181 | L53: 0.181 | M53: 0.181 | N53: 0.12 | O53: 0.12 | P53: 0.12 | Q53: 0.12
B54: Plan Residencial Off Net Nacional Móviles (Telecsa) | P54: 0.12 | Q54: 0.12
B55: Plan Comercial Off Net Nacional Móviles (Telecsa) | P55: 0.12 | Q55: 0.12
B56: 3.5 USO INTERNACIONAL | C56: (Por Minuto)
B57: Grupo 1 (Pacto Andino) | D57: 0.8 | E57: 0.42 | F57: 0.42 | G57: 0.42 | H57: 0.42 | I57: 0.31
B58: Grupo 2 (EE.UU, Canadá y México) | D58: 0.8 | E58: 0.42 | F58: 0.42 | G58: 0.42 | H58: 0.42 | I58: 0.27
B59: Grupo 3 (Cuba)
B60: Grupo 4 (Resto de América) | D60: 1 | E60: 0.52 | F60: 0.52 | G60: 0.52 | H60: 0.52 | I60: 0.29
B61: Grupo 5 (Europa) | D61: 1.28 | E61: 0.52 | F61: 0.52 | G61: 0.52 | H61: 0.52 | I61: 0.52
B62: Grupo 6 (Japón) | D62: 1.52 | E62: 0.65 | F62: 0.65 | G62: 0.65 | H62: 0.65 | I62: 0.52
B63: Grupo 7 (Resto del Mundo) | D63: 1.52 | E63: 0.65 | F63: 0.65 | G63: 0.65 | H63: 0.65 | I63: 0.65
B64: Móvil Marítimo | D64: 6 | I64: 6.8 | J64: 6.8 | K64: 6.8 | L64: 6.8 | M64: 6.8 | N64: 6.8 | O64: 6.8 | P64: 6.8 | Q64: 6.8
B65: 3.6 SERVICIO FRONTERIZO | C65: (Por Minuto)
B66: De zona fronteriza a zona fronteriza | D66: 0.08 | E66: 0.08 | F66: 0.08 | G66: 0.08 | H66: 0.08 | I66: 0.08 | J66: 0.08 | K66: 0.08 | L66: 0.08 | M66: 0.08 | N66: 0.08 | O66: 0.08 | P66: 0.08 | Q66: 0.08
B67: Fronterizo Tulcán - Ipiales | D67: 0.04 | E67: 0.04 | F67: 0.04 | G67: 0.04 | H67: 0.04 | I67: 0.04 | J67: 0.04 | K67: 0.04 | L67: 0.04 | M67: 0.04 | N67: 0.04 | O67: 0.04 | P67: 0.04 | Q67: 0.04
B68: 3.5 USO INTERNACIONAL: LDI | C68: (Por Minuto)
B69: Argentina Fijo | J69: 0.297 | K69: 0.297 | L69: 0.297 | M69: 0.297 | N69: 0.297 | O69: 0.297 | P69: 0.297 | Q69: 0.297
B70: Argentina (Móvil) | J70: 0.396 | K70: 0.396 | L70: 0.396 | M70: 0.396 | N70: 0.396 | O70: 0.396 | P70: 0.396 | Q70: 0.396
B71: Colombia Resto País | J71: 0.205 | K71: 0.205 | L71: 0.205 | M71: 0.205 | N71: 0.205 | O71: 0.205 | P71: 0.205 | Q71: 0.205
B72: Colombia Principales ciudades (Bogotá, Cali, Barranquilla, Medellín) | J72: 0.19 | K72: 0.19 | L72: 0.19 | M72: 0.19 | N72: 0.19 | O72: 0.19 | P72: 0.19 | Q72: 0.19
B73: Colombia (Móvil) | J73: 0.236 | K73: 0.236 | L73: 0.236 | M73: 0.236 | N73: 0.236 | O73: 0.236 | P73: 0.236 | Q73: 0.236
B74: España | J74: 0.233 | K74: 0.233 | L74: 0.233 | M74: 0.233 | N74: 0.233 | O74: 0.233 | P74: 0.233 | Q74: 0.233
B75: España (Móvil) | J75: 0.3 | K75: 0.3 | L75: 0.3 | M75: 0.3 | N75: 0.3 | O75: 0.3 | P75: 0.3 | Q75: 0.3
B76: Estados Unidos (Incluye Alaska, Hawai, Puerto Rico, Islas Vírgenes Americanas) | J76: 0.16 | K76: 0.16 | L76: 0.16 | M76: 0.16 | N76: 0.16 | O76: 0.16 | P76: 0.16 | Q76: 0.16
B77: Italia | J77: 0.233 | K77: 0.233 | L77: 0.233 | M77: 0.233 | N77: 0.233 | O77: 0.233 | P77: 0.233 | Q77: 0.233
B78: Italia (Móvil) | J78: 0.35 | K78: 0.35 | L78: 0.35 | M78: 0.35 | N78: 0.35 | O78: 0.35 | P78: 0.35 | Q78: 0.35
B79: Perú | J79: 0.19 | K79: 0.19 | L79: 0.19 | M79: 0.19 | N79: 0.19 | O79: 0.19 | P79: 0.19 | Q79: 0.19
B80: Perú (Móvil) | J80: 0.31 | K80: 0.31 | L80: 0.31 | M80: 0.31 | N80: 0.31 | O80: 0.31 | P80: 0.31 | Q80: 0.31
B81: Canadá (Redes Fijas y Móviles) | K81: 0.27 | L81: 0.27 | M81: 0.27 | N81: 0.27 | O81: 0.27 | P81: 0.27 | Q81: 0.27
B82: Venezuela(Redes Fijas y Móviles) | K82: 0.31 | L82: 0.31 | M82: 0.31 | N82: 0.31 | O82: 0.31 | P82: 0.31 | Q82: 0.31
B83: Bolivia y Chile (Redes Fijas y Móviles) | K83: 0.31 | L83: 0.31 | M83: 0.31 | N83: 0.31 | O83: 0.31 | P83: 0.31 | Q83: 0.31
B84: Cuba (Redes Fijas y Móviles) | K84: 1.24
B85: Resto de América (Redes Fijas y Móviles) | K85: 0.47 | L85: 0.47 | M85: 0.47 | N85: 0.47 | O85: 0.47 | P85: 0.47 | Q85: 0.47
B86: Resto del Mundo (Redes Fijas y Móviles) | K86: 0.5 | L86: 0.5 | M86: 0.5 | N86: 0.5 | O86: 0.5 | P86: 0.5 | Q86: 0.5
B87: INMARSAT (Móvil marítimo) e IIRIDIUM | K87: 13.53
B88: Excepciones 1* | K88: 1.89
B89: Excepciones 2 ** | K89: 6.31
B90: TARIFA NOCTURNA
B91: Argentina Fijo | L91: 0.15 | M91: 0.15 | N91: 0.15 | O91: 0.15 | P91: 0.15 | Q91: 0.15
B92: Argentina (Móvil) | L92: 0.15 | M92: 0.15 | N92: 0.15 | O92: 0.15 | P92: 0.15 | Q92: 0.15
B93: Colombia Resto País | L93: 0.15 | M93: 0.15 | N93: 0.15 | O93: 0.15 | P93: 0.15 | Q93: 0.15
B94: Colombia Principales ciudades (Bogotá, Cali, Barranquilla, Medellín) | L94: 0.15 | M94: 0.15 | N94: 0.15 | O94: 0.15 | P94: 0.15 | Q94: 0.15
B95: Colombia (Móvil) | L95: 0.15 | M95: 0.15 | N95: 0.15 | O95: 0.15 | P95: 0.15 | Q95: 0.15
B96: España | L96: 0.15 | M96: 0.15 | N96: 0.15 | O96: 0.15 | P96: 0.15 | Q96: 0.15
B97: España (Móvil) | L97: 0.15 | M97: 0.15 | N97: 0.15 | O97: 0.15 | P97: 0.15 | Q97: 0.15
B98: Estados Unidos (Incluye Alaska, Hawai, Puerto Rico, Islas Vírgenes Americanas) | L98: 0.1 | M98: 0.1 | N98: 0.1 | O98: 0.1 | P98: 0.1 | Q98: 0.1
B99: Italia | L99: 0.15 | M99: 0.15 | N99: 0.15 | O99: 0.15 | P99: 0.15 | Q99: 0.15
B100: Italia (Móvil) | L100: 0.15 | M100: 0.15 | N100: 0.15 | O100: 0.15 | P100: 0.15 | Q100: 0.15
B101: Perú | L101: 0.15 | M101: 0.15 | N101: 0.15 | O101: 0.15 | P101: 0.15 | Q101: 0.15
B102: Perú (Móvil) | L102: 0.15 | M102: 0.15 | N102: 0.15 | O102: 0.15 | P102: 0.15 | Q102: 0.15
B103: Canadá (Redes Fijas y Móviles) | L103: 0.15 | M103: 0.15 | N103: 0.15 | O103: 0.15 | P103: 0.15 | Q103: 0.15
B104: Venezuela(Redes Fijas y Móviles) | L104: 0.15 | M104: 0.15 | N104: 0.15 | O104: 0.15 | P104: 0.15 | Q104: 0.15
B105: Bolivia y Chile (Redes Fijas y Móviles) | L105: 0.248 | M105: 0.248 | N105: 0.248 | O105: 0.248 | P105: 0.248 | Q105: 0.248
B106: Cuba (Redes Fijas y Móviles)
B107: Resto de América (Redes Fijas y Móviles) | L107: 0.376 | M107: 0.376 | N107: 0.376 | O107: 0.376 | P107: 0.376 | Q107: 0.376
B108: Resto del Mundo (Redes Fijas y Móviles) | L108: 0.4 | M108: 0.4 | N108: 0.4 | O108: 0.4 | P108: 0.4 | Q108: 0.4
B109: 3.5 USO INTERNACIONAL POR OPERADORA | C109: (Por Minuto)
B110: Argentina Fijo | L110: =+L69*1.3 -> 0.3861 | M110: 0.3861 | N110: 0.3861 | O110: 0.3861 | P110: 0.3861 | Q110: 0.3861
B111: Argentina (Móvil) | L111: =+L70*1.3 -> 0.5148 | M111: =+M70*1.3 -> 0.5148 | N111: 0.5148 | O111: =+O70*1.3 -> 0.5148 | P111: =+P70*1.3 -> 0.5148 | Q111: 0.5148
B112: Colombia Resto País | L112: 0.2665 | M112: 0.2665 | N112: 0.2665 | O112: 0.2665 | P112: 0.2665 | Q112: 0.2665
B113: Colombia Principales ciudades (Bogotá, Cali, Barranquilla, Medellín) | L113: 0.247 | M113: 0.247 | N113: 0.247 | O113: 0.247 | P113: 0.247 | Q113: 0.247
B114: Colombia (Móvil) | L114: 0.3068 | M114: 0.3068 | N114: 0.3068 | O114: 0.3068 | P114: 0.3068 | Q114: 0.3068
B115: España | L115: 0.3029 | M115: 0.3029 | N115: 0.3029 | O115: 0.3029 | P115: 0.3029 | Q115: 0.3029
B116: España (Móvil) | L116: 0.39 | M116: 0.39 | N116: 0.39 | O116: 0.39 | P116: 0.39 | Q116: 0.39
B117: Estados Unidos (Incluye Alaska, Hawai, Puerto Rico, Islas Vírgenes Americanas) | L117: 0.208 | M117: 0.208 | N117: 0.208 | O117: 0.208 | P117: 0.208 | Q117: 0.208
B118: Italia | L118: 0.3029 | M118: 0.3029 | N118: 0.3029 | O118: 0.3029 | P118: 0.3029 | Q118: 0.3029
B119: Italia (Móvil) | L119: 0.455 | M119: 0.455 | N119: 0.455 | O119: 0.455 | P119: 0.455 | Q119: 0.455
B120: Perú | L120: 0.247 | M120: 0.247 | N120: 0.247 | O120: 0.247 | P120: 0.247 | Q120: 0.247
B121: Perú (Móvil) | L121: 0.403 | M121: 0.403 | N121: 0.403 | O121: 0.403 | P121: 0.403 | Q121: 0.403
B122: Canadá (Redes Fijas y Móviles) | L122: 0.351 | M122: 0.351 | N122: 0.351 | O122: 0.351 | P122: 0.351 | Q122: 0.351
B123: Venezuela(Redes Fijas y Móviles) | L123: 0.403 | M123: 0.403 | N123: 0.403 | O123: 0.403 | P123: 0.403 | Q123: 0.403
B124: Bolivia y Chile (Redes Fijas y Móviles) | L124: 0.403 | M124: 0.403 | N124: 0.403 | O124: 0.403 | P124: 0.403 | Q124: 0.403
B125: Resto de América (Redes Fijas y Móviles) | L125: =+L85*1.3 -> 0.611 | M125: 0.611 | N125: 0.611 | O125: =+O85*1.3 -> 0.611 | P125: 0.611 | Q125: 0.611
B126: Resto del Mundo (Redes Fijas y Móviles) | L126: 0.65 | M126: 0.65 | N126: 0.65 | O126: 0.65 | P126: 0.65 | Q126: 0.65
B127: LDI. POR OPERADORA:TARIFA NOCTURNA
B128: Argentina Fijo | L128: =+L91*1.3 -> 0.195 | M128: 0.195 | N128: 0.195 | O128: 0.195 | P128: 0.195 | Q128: 0.195
B129: Argentina (Móvil) | L129: =+L92*1.3 -> 0.195 | M129: =+M92*1.3 -> 0.195 | N129: 0.195 | O129: =+O92*1.3 -> 0.195 | P129: =+P92*1.3 -> 0.195 | Q129: 0.195
B130: Colombia Resto País | L130: 0.195 | M130: 0.195 | N130: 0.195 | O130: 0.195 | P130: 0.195 | Q130: 0.195
B131: Colombia Principales ciudades (Bogotá, Cali, Barranquilla, Medellín) | L131: 0.195 | M131: 0.195 | N131: 0.195 | O131: 0.195 | P131: 0.195 | Q131: 0.195
B132: Colombia (Móvil) | L132: 0.195 | M132: 0.195 | N132: 0.195 | O132: 0.195 | P132: 0.195 | Q132: 0.195
B133: España | L133: 0.195 | M133: 0.195 | N133: 0.195 | O133: 0.195 | P133: 0.195 | Q133: 0.195
B134: España (Móvil) | L134: 0.195 | M134: 0.195 | N134: 0.195 | O134: 0.195 | P134: 0.195 | Q134: 0.195
B135: Estados Unidos (Incluye Alaska, Hawai, Puerto Rico, Islas Vírgenes Americanas) | L135: 0.13 | M135: 0.13 | N135: 0.13 | O135: 0.13 | P135: 0.13 | Q135: 0.13
B136: Italia | L136: 0.195 | M136: 0.195 | N136: 0.195 | O136: 0.195 | P136: 0.195 | Q136: 0.195
B137: Italia (Móvil) | L137: 0.195 | M137: 0.195 | N137: 0.195 | O137: 0.195 | P137: 0.195 | Q137: 0.195
B138: Perú | L138: 0.195 | M138: 0.195 | N138: 0.195 | O138: 0.195 | P138: 0.195 | Q138: 0.195
B139: Perú (Móvil) | L139: 0.195 | M139: 0.195 | N139: 0.195 | O139: 0.195 | P139: 0.195 | Q139: 0.195
B140: Canadá (Redes Fijas y Móviles) | L140: 0.195 | M140: 0.195 | N140: 0.195 | O140: 0.195 | P140: 0.195 | Q140: 0.195
B141: Venezuela(Redes Fijas y Móviles) | L141: 0.195 | M141: 0.195 | N141: 0.195 | O141: 0.195 | P141: 0.195 | Q141: 0.195
B142: Bolivia y Chile (Redes Fijas y Móviles) | L142: 0.3224 | M142: 0.3224 | N142: 0.3224 | O142: 0.3224 | P142: 0.3224 | Q142: 0.3224
B143: Resto de América (Redes Fijas y Móviles) | L143: =+L107*1.3 -> 0.4888 | M143: 0.4888 | N143: 0.4888 | O143: =+O107*1.3 -> 0.4888 | P143: 0.4888 | Q143: 0.4888
B144: Resto del Mundo (Redes Fijas y Móviles) | L144: 0.52 | M144: 0.52 | N144: 0.52 | O144: 0.52 | P144: 0.52 | Q144: 0.52
B146: Notas:
B148: 1. Se define CATEGORIA A: Residencial Popular
B149: 2. Se define CATEGORIA B: Residencial, Educación Sector Público
B150: 3. Se define CATEGORÍA C: Industrial, Comercial, Profesionales
B151: 4. Fuente: CNT E.P.
B152: 5. Períodos: al 31 de diciembre de cada año
B153: 7. No se incluye valor de los impuestos
B154: * Tarifas aplicadas al público a junio 2013
B157: CNT E.P.
B158: SERVICIO | C158: Medición | D158: 2008 | E158: 2009 | F158: 2010 | G158: 2011 | H158: 2012 | I158: 2013*
B159: SERVICIO TELEFONICO POR OPERADORA
B160: USO LOCAL | C160: (Por Minuto)
B161: CATEGORIA A | D161: 0.003 | E161: 0.003 | F161: 0.003 | G161: 0.003 | H161: 0.003 | I161: 0.003
B162: CATEGORIA B | D162: 0.022 | E162: 0.022 | F162: 0.022 | G162: 0.022 | H162: 0.022 | I162: 0.022
B163: CATEGORIA C | D163: 0.036 | E163: 0.036 | F163: 0.036 | G163: 0.036 | H163: 0.036 | I163: 0.036
B164: USO DE LARGA DISTANCIA NACIONAL | C164: (Por Minuto)
B165: CATEGORIA A | E165: 0.008 | F165: 0.008 | G165: 0.008 | H165: 0.008 | I165: 0.008
B166: CATEGORIA B | E166: 0.026 | F166: 0.026 | G166: 0.026 | H166: 0.026 | I166: 0.026
B167: CATEGORIA C | E167: 0.073 | F167: 0.073 | G167: 0.073 | H167: 0.073 | I167: 0.073
B168: CATEGORIA D | E168: 0.135 | F168: 0.135 | G168: 0.135 | H168: 0.135 | I168: 0.135
B169: SERVICIO TELEFONICO POR OPERADORA DENTRO DE LA RED DE CNT E.P.
B170: USO LOCAL | C170: (Por Minuto)
B171: CATEGORIA A | D171: 0.003 | E171: 0.003 | F171: 0.003 | G171: 0.003 | H171: 0.003 | I171: 0.003
B172: CATEGORIA B | D172: 0.013 | E172: 0.013 | F172: 0.013 | G172: 0.013 | H172: 0.013 | I172: 0.013
B173: CATEGORIA C | D173: 0.031 | E173: 0.031 | F173: 0.031 | G173: 0.031 | H173: 0.031 | I173: 0.031
B174: USO DE LARGA DISTANCIA REGIONAL | C174: (Por Minuto)
B175: CATEGORIA A | D175: 0.008 | E175: 0.008 | F175: 0.008 | G175: 0.008 | H175: 0.008 | I175: 0.008
B176: CATEGORIA B | D176: 0.026 | E176: 0.026 | F176: 0.026 | G176: 0.026 | H176: 0.026 | I176: 0.026
B177: CATEGORIA C | D177: 0.073 | E177: 0.073 | F177: 0.073 | G177: 0.073 | H177: 0.073 | I177: 0.073
B178: USO DE LARGA DISTANCIA NACIONAL | C178: (Por Minuto)
B179: CATEGORIA A | D179: 0.012 | E179: 0.012 | F179: 0.012 | G179: 0.012 | H179: 0.012 | I179: 0.012
B180: CATEGORIA B | D180: 0.052 | E180: 0.052 | F180: 0.052 | G180: 0.052 | H180: 0.052 | I180: 0.052
B181: CATEGORIA C | D181: 0.146 | E181: 0.146 | F181: 0.146 | G181: 0.146 | H181: 0.146 | I181: 0.146
B182: USO HACIA CELULAR PORTA y MOVISTAR | C182: (Por Minuto)
B183: CATEGORIA A | D183: 0.189 | E183: 0.189 | F183: 0.189 | G183: 0.189 | H183: 0.189 | I183: 0.189
B184: CATEGORIA B | D184: 0.189 | E184: 0.189 | F184: 0.189 | G184: 0.189 | H184: 0.189 | I184: 0.189
B185: CATEGORIA C | D185: 0.189 | E185: 0.189 | F185: 0.189 | G185: 0.189 | H185: 0.189 | I185: 0.189
B186: USO HACIA CELULAR ALEGRO | C186: (Por Minuto)
B187: CATEGORIA A | D187: 0.235 | E187: 0.15 | F187: 0.15 | G187: 0.15 | H187: 0.15 | I187: 0.15
B188: CATEGORIA B | D188: 0.235 | E188: 0.15 | F188: 0.15 | G188: 0.15 | H188: 0.15 | I188: 0.15
B189: CATEGORIA C | D189: 0.235 | E189: 0.15 | F189: 0.15 | G189: 0.15 | H189: 0.15 | I189: 0.15
B191: Notas:
B193: 1. Fuente: CNT E.P.
B194: 2. Períodos: al 31 de Diciembre de cada año
B195: 3. No se incluye valor de los impuestos
B196: =+B154 -> * Tarifas aplicadas al público a junio 2013
B200: Tarifas para Locutorios
B201: Destino | C201: Tarifa de PVP CNT E.P. sin IVA
B202: Llamada Internacional | C202: 1.04
B203: Llamada Internacional Móvil Marítima | C203: 8.801
B204: Local On Net | C204: 0.1
B205: Local Off Net | C205: 0.1
B206: Regional On Net | C206: 0.135
B207: Regional Off Net | C207: 0.135
B208: Nacional On Net | C208: 0.135
B209: Nacional Off Net | C209: 0.135
B210: Notas:
B211: Fuente: CNT E.P.
B214: Tarifas a ALEGRO S.A.
B215: Llamadas a Alegro
B216: Popular | C216: 0.12
B217: Residencial | C217: 0.12
B218: Comercial | C218: 0.12
B219: Telefonia Pública | C219: 0.22
... 706 more rows

Sheet ETAPA.EP
A2: Servicio de Telefonía Fija
A3: Plan Tarifario ETAPA E.P.
A8: =+Inicio!B8 -> Fecha de publicación: junio de 2013
B12: TARIFAS DE TELEFONÍA LOCAL
B13: Vigentes a partir del 25 de marzo del 2001
B14: En cumplimiento a lo ordenado en el artículo 136 del Decreto Ejecutivo 3301 (Suplemento 832 del Registro Oficial del 29 de Noviembre de 1995, reformado por el artículo 11 del Decreto Ejecutivo 833 (Registro Oficial 2do. - S 194 del 14 de Noviembre de 1997), se publica a continuación las tarifas de los servicios de telefonía local prestados por ETAPA.
D16: Pensión Básica Mensual | E16: Tarifas por Minuto Uso Local
D17: USD | E17: USD
B18: Categoría A | C18: Abonados: Populares Marginales y Rurales | D18: 0.8 | E18: 0.002
D19: 300 minutos libres
D23: 300 minutos libres
B24: Categoría B | C24: Abonados: Residenciales, Sector Público e Instituciones
C25: B200 : Consumo de 0 hasta 200 minutos | D25: 1.99 | E25: 0.002
C26: B500 : Consumo de más de 200 minutos hasta 500 minutos (a) | D26: 3.99 | E26: 0.006
C27: B+500 : Consumo de más de 500 minutos | D27: 4.79 | E27: 0.007
B28: Categoría C | C28: Abonados: Comerciales e Industriales | D28: 9.99 | E28: 0.022
B30: 1. A estos valores debe agregarse el impuesto establecido por Ley: 12% IVA.
B31: Adquisición nueva línea
D33: Adquisición Nueva Línea (inscripción)
D34: US dólares
B35: Categoría A | C35: Abonados: Populares Marginales y Rurales | D35: $ 60
B36: Categoría B | C36: Abonados: Residenciales, Sector Público e Instituciones | D36: $ 90
B37: Categoría C | C37: Abonados: Comerciales e Industriales | D37: $ 148
B40: Nota: Estos son los precios finales que usted deberá cancelar.
A42: Estos valores incluyen valor de adquisición más derecho de acceso a la red
B45: Notas Aclaratorias
B47: a. Incluye 300 minutos de uso libre local.
B48: b. Resolución Sesión Extraordinaria del Directorio del 30 de agosto de 2001 - Oficio 02697-GG , aprobación de plan promocional con aplicación para los consumos comprendidos entre 200 y 700 minutos, según el siguiente detalle:
B50: 1. El consumo telefónico entre 201 y 300 minutos tiene el 50% de descuento en la pensión básica, es decir de US$ 2,00 (Rebaja de US$ 3,99 a US$ 1,99).
B51: 2. El consumo telefónico entre 301 y 400 minutos tiene el 35% de descuento en la pensión básica, es decir de US$ 1,40 (Rebaja de US$ 3,99 a US$ 2,59).
B52: 3. El consumo telefónico entre 401 y 500 minutos tiene el 15% de descuento en la pensión básica, es decir de US$ 0,60 (Rebaja de US$ 3,99 a US$ 3,39).
B53: 4. El consumo telefónico entre 501 y 700 minutos tiene el 10% de descuento en la pensión básica, es decir de US$ 0,48 (Rebaja de US$ 4,79 a US$ 4,31).
B54: (Promoción vigente de acuerdo a lo dispuesto mediante Memorandum 0699 y 0700-GG de 1 de diciembre de 2001)
B55: c. Resolución Directorio Sesión Ordinaria del 17 de mayo de 2004, Aplicación inmediata de lo estipulado en el Art. 15 de la Ley Reformatoria a la Ley del Anciano publicada en el RO No.231 del 12 de diciembre de 2003. - Oficio 2197-GG 31 de mayo de 2004.
B56: 1. Descuento del 50% de la tarifa básica residencial de un teléfono de propiedad del beneficiario en su domicilio. ( Extensivo en su totalidad para ciudadanos discapacitados, de la tercera edad y jubilados sin trabajo).
B57: 2. Descuento del 50% del valor del consumo que causare el uso de la telefonía local, para las Instituciones sin fines de lucro que den atención a las personas de la tercera edad como: Asilos, Albergues, Comedores e Instituciones Gerentológicas.
B58: 3. Descuento de hasta $6 mensuales en el valor facturado por consumo telefónico local para puestos de auxilio inmediato.
B60: FUENTE: Dirección General de Planificación - Estudios Económicos y Proyectos - Gerencia Comercial
B64: Banda Ancha
B65: Planes Residenciales
B67: Velocidad | C67: 350 Kbps | D67: 600 Kbps | E67: 1200 Kbps | F67: 2100 Kbps
B68: Bajada/Subida | C68: 350/350 | D68: 600/600 | E68: 1200/600 | F68: 2100/750
B69: Concentración | C69: 8/1 | D69: 8/1 | E69: 8/1 | F69: 8/1
B70: Precio (no incluye IVA) USD | C70: 19.99 | D70: 29.99 | E70: 49 | F70: 80
B71: Instalación USD | C71: 40 | D71: 40 | E71: 40 | F71: 40
B72: Modem ADSL | C72: Comodato con pagaré de $ 100 | D72: Comodato con pagaré de $ 100 | E72: Comodato con pagaré de $ 100 | F72: Comodato con pagaré de $ 100
B73: Modem ADSL + WI FI | C73: Comodato con pagaré de $ 100 | D73: Comodato con pagaré de $ 100 | E73: Comodato con pagaré de $ 100 | F73: Comodato con pagaré de $ 100
B74: Programación Modem ADSL + WI FI USD | C74: 25 | D74: 25 | E74: 25 | F74: 25
B75: Tiempo Mínimo de Permencia | C75: un año | D75: un año | E75: un año | F75: un año
B76: Condiciones Especiales | C76: Si se retira de un año, el cliente deberá cancelar la cantidad prorrateada mensual por alquiler y uso del moden durante los meses utilizados y devolver dicho modem o cancelar la totalidad de su valor, en función del modelo de equipo entregado. | D76: Si se retira de un año, el cliente deberá cancelar la cantidad prorrateada mensual por alquiler y uso del moden durante los meses utilizados y devolver dicho modem o cancelar la totalidad de su valor, en función del modelo de equipo entregado. | E76: Si se retira de un año, el cliente deberá cancelar la cantidad prorrateada mensual por alquiler y uso del moden durante los meses utilizados y devolver dicho modem o cancelar la totalidad de su valor, en función del modelo de equipo entregado. | F76: Si se retira de un año, el cliente deberá cancelar la cantidad prorrateada mensual por alquiler y uso del moden durante los meses utilizados y devolver dicho modem o cancelar la totalidad de su valor, en función del modelo de equipo entregado.
B77: Acuerdo Nivel de Servicio | C77: Inspección e instalación en dos días a partir del pago de la instalación. | D77: Inspección e instalación en dos días a partir del pago de la instalación. | E77: Inspección e instalación en dos días a partir del pago de la instalación. | F77: Inspección e instalación en dos días a partir del pago de la instalación.
B79: Planes Empresariales
B81: Velocidad | C81: 256 Kbps | D81: 350 Kbps | E81: 600 Kbps | F81: 1200 Kbps | G81: 2100 Kbps
B82: Bajada/Subida | C82: 256/256 | D82: 350/350 | E82: 600/600 | F82: 1200/600 | G82: 2100/750
B83: Concentración | C83: 1/1 | D83: 1/1 | E83: 1/1 | F83: 1/1 | G83: 1/1
B84: Precio (no incluye IVA) USD | C84: 134 | D84: 189 | E84: 255 | F84: 458 | G84: 819
B86: Velocidad | C86: 256 Kbps | D86: 350 Kbps | E86: 600 Kbps | F86: 1200 Kbps | G86: 2100 Kbps
B87: Bajada/Subida | C87: 256/256 | D87: 350/350 | E87: 600/600 | F87: 1200/600 | G87: 2100/750
B88: Concentración | C88: 2/1 | D88: 2/1 | E88: 2/1 | F88: 2/1 | G88: 2/1
B89: Precio (no incluye IVA) USD | C89: 78 | D89: 114 | E89: 142 | F89: 256 | G89: 464
B91: Velocidad | C91: 256 Kbps | D91: 350 Kbps | E91: 600 Kbps | F91: 1200 Kbps
B92: Bajada/Subida | C92: 256/256 | D92: 350/350 | E92: 600/600 | F92: 1200/600
B93: Concentración | C93: 4/1 | D93: 4/1 | E93: 4/1 | F93: 4/1
B94: Precio (no incluye IVA) USD | C94: 51.2 | D94: 72.19 | E94: 100 | F94: 190
B98: PLAN DE TARIFAS (1)
B99: Categoria | C99: Descripción | D99: Valor USD
B100: Categoria A | C100: Costo de suscripción | D100: 44
C101: Pensión Básica mensual | D101: 6.9
C102: Costo por minuto local | D102: 0.017
C103: Costo por minuto regional | D103: 0.02
C104: Costo por minuto Nacional | D104: 0.04
B105: Categoria B | C105: Costo de suscripción | D105: 88
C106: Pensión Básica mensual | D106: 6.9
C107: Costo por minuto local | D107: 0.017
C108: Costo por minuto regional | D108: 0.02
C109: Costo por minuto Nacional | D109: 0.04
B110: Categoria C | C110: Costo de suscripción | D110: 120
C111: Pensión Básica mensual | D111: 12
C112: Costo por minuto local | D112: 0.02
C113: Costo por minuto regional | D113: 0.04
C114: Costo por minuto Nacional | D114: 0.08
B115: Servicio Suplementarios
B116: Transferencia de Llamadas | D116: 0
B117: Llamada en espera | D117: 0
B118: Llamada Tripartita | D118: 0
B119: Llamada en confernecia | D119: 0
B120: Identificador de Llamadas (Caller ID) | D120: 0
B123: TASAS DE TRAFICO INTERNACIONAL (1)
B124: GRUPO | C124: DESTINO | F124: Tarifa al Público
B125: 1 | C125: USA | E125: USA | F125: 0.09
B126: 2 | C126: Italia - España | D126: Fijos | E126: Italia | F126: 0.14
E127: España
D128: Móviles | E128: Italia | F128: 0.35
E129: España
B130: 3 | C130: Resto de Europa | D130: Fijos | E130: Alemania | F130: 0.14
E131: UK
E132: Francia
E133: Switzerland
E134: Belgium
D135: Móviles | E135: Alemania | F135: 0.5
E136: UK
E137: Francia
E138: Switzerland
E139: Belgium
B140: 4 | C140: Pacto Andino | D140: Fijos | E140: Perú | F140: 0.16
E141: Colombia
E142: Venezuela
E143: Bolivia
D144: Móviles | E144: Perú | F144: 0.36
E145: Colombia
E146: Venezuela
E147: Bolivia
B148: 5 | C148: Resto de América | D148: Fijos | E148: Chile | F148: 0.16
E149: Argentina
E150: Panamá
E151: Brazil
D152: Móviles | E152: Chile | F152: 0.36
E153: Argentina
E154: Panamá
E155: Brazil
B156: 6 | C156: Resto de América | D156: Fijos | E156: China | F156: 0.24
E157: Israel
E158: Australia
E159: Japón
E160: Korea (South)
D161: Móviles | E161: China | F161: 0.36
E162: Israel
E163: Australia
E164: Japón
E165: Korea (South)
B166: 7 | C166: Cuba | E166: Cuba | F166: 0.5
B167: 8 | C167: Móvil Marítimo | E167: Móvil Marítimo | F167: No disponible
B170: TARIFAS DE TELEFONIA FIJA PARA GUANGARCUCHO (1)
B171: CONCEPTO | C171: VALOR USD
B172: Derecho de Inscripación | C172: 88
B173: Pensión Básica | C173: 8.6
B174: Minuto de Uso Local | C174: 0.017
B175: Minuto de Uso Regional | C175: 0.027
B176: Minuto de Uso Nacional | C176: 0.056
B177: Minuto LDI todos los destinos (excepto móvil marítimo) | C177: 0.5
B181: Planes Tarifarios
B182: Planes Residenciales | C182: Velocidad KBPS Bajada | D182: Comprensión | E182: Precio Techo sin IVA
B183: Plan Residencial 700 kbps 8:1 | C183: 700 | D183: 8 a 1 | E183: 19.99
B184: Plan Residencial 1 Mega 8:1 | C184: 1000 | D184: 8 a 1 | E184: 25.99
B185: Plan Residencial 1.2 Mega 8:1 | C185: 1200 | D185: 8 a 1 | E185: 29.9
B186: Plan Residencial 1.6 Mega 8:1 | C186: 1600 | D186: 8 a 1 | E186: 39.9
B187: Plan Residencial 2 Mega 8:1 | C187: 2000 | D187: 8 a 1 | E187: 49
B188: Plan Residencial 2.1 Mega 8:1 | C188: 2078 | D188: 8 a 1 | E188: 51.2
B189: Plan Residencial 2.5 Mega 8:1 | C189: 2500 | D189: 8 a 1 | E189: 58.23
B190: Plan Residencial 3 Mega 8:1 | C190: 3000 | D190: 8 a 1 | E190: 66.57
B191: Plan Residencial 3.3 Mega 8:1 | C191: 3300 | D191: 8 a 1 | E191: 71.57
B192: Plan Residencial 3.8 Mega 8:1 | C192: 3800 | D192: 8 a 1 | E192: 79.9
B193: Plan Residencial 4.4 Mega 8:1 | C193: 4350 | D193: 8 a 1 | E193: 89.07
B195: Planes Educando Rural | C195: Velocidad KBPS Bajada | D195: Comprensión | E195: Precio Techo sin IVA
B196: Plan Educando Rural 350 Kbps 4:1 | C196: 350 | D196: 4 a 1 | E196: 8
B197: Plan Educando Rural 700 Kbps 4:1 | C197: 700 | D197: 4 a 1 | E197: 12.3
B198: Plan Educando Rural 1.400 Kbps 4:1 | C198: 1400 | D198: 4 a 1 | E198: 20.8
B200: Planes Educando Urbano | C200: Velocidad KBPS Bajada | D200: Comprensión | E200: Precio Techo sin IVA
B201: Plan Educando Urbano 350 Kbps 1:1 | C201: 350 | D201: 1 a 1 | E201: 37.6
B202: Plan Educando Urbano 450 Kbps 1:1 | C202: 450 | D202: 1 a 1 | E202: 48.3
B203: Plan Educando Urbano 700 Kbps 1:1 | C203: 700 | D203: 1 a 1 | E203: 75.2
B204: Plan Educando Urbano 1.400 Kbps 1:1 | C204: 1400 | D204: 1 a 1 | E204: 130.73
B205: Plan Educando Urbano 2.400 Kbps 1:1 | C205: 2400 | D205: 1 a 1 | E205: 208.72
B206: Plan Educando Urbano 3.000 Kbps 1:1 | C206: 3000 | D206: 1 a 1 | E206: 255.51
B207: Plan Educando Urbano 4.000 Kbps 1:1 | C207: 4000 | D207: 1 a 1 | E207: 333.5
B209: Planes Empresariales 4:1 | C209: Velocidad KBPS Bajada | D209: Comprensión | E209: Precio Techo sin IVA
B210: Plan Empresarial 450 Kbps 4:1 | C210: 450 | D210: 4 a 1 | E210: 57.49
B211: Plan Empresarial 660 Kbps 4:1 | C211: 660 | D211: 4 a 1 | E211: 77.36
B212: Plan Empresarial 700 Kbps 4:1 | C212: 700 | D212: 4 a 1 | E212: 80.28
B213: Plan Empresarial 1 Mega 4:1 | C213: 1024 | D213: 4 a 1 | E213: 98.9
B214: Plan Empresarial 1.2 Megas 4:1 | C214: 1200 | D214: 4 a 1 | E214: 110
B215: Plan Empresarial 1.4 Megas 4:1 | C215: 1400 | D215: 4 a 1 | E215: 125.34
B216: Plan Empresarial 1.5 Megas 4:1 | C216: 1500 | D216: 4 a 1 | E216: 132.37
B217: Plan Empresarial 2 Mega 4:1 | C217: 2060 | D217: 4 a 1 | E217: 170
B218: Plan Empresarial 2.4 Megas 4:1 | C218: 2400 | D218: 4 a 1 | E218: 190
B219: Plan Empresarial 3 Megas 4:1 | C219: 3000 | D219: 4 a 1 | E219: 225.68
B221: Planes Empresariales 2:1 | C221: Velocidad KBPS Bajada | D221: Comprensión | E221: Precio Techo sin IVA
B222: Plan Empresarial 450 Kbps 2:1 | C222: 450 | D222: 2 a 1 | E222: 125.95
B223: Plan Empresarial 700 Kbps 2:1 | C223: 660 | D223: 2 a 1 | E223: 150.24
B224: Plan Empresarial 1.1 Megas 2:1 | C224: 1100 | D224: 2 a 1 | E224: 194
B225: Plan Empresarial 1.4 Megas 2:1 | C225: 1400 | D225: 2 a 1 | E225: 229.9
B226: Plan Empresarial 1.5 Megas 2:1 | C226: 1500 | D226: 2 a 1 | E226: 244
B227: Plan Empresarial 1.6 Megas 2:1 | C227: 1600 | D227: 2 a 1 | E227: 256
B228: Plan Empresarial 2.4 Megas 2:1 | C228: 2400 | D228: 2 a 1 | E228: 343.7
B229: Plan Empresarial 3 Megas 2:1 | C229: 3000 | D229: 2 a 1 | E229: 411.99
B230: Plan Empresarial 3.4 Megas 2:1 | C230: 3400 | D230: 2 a 1 | E230: 458
B231: Plan Empresarial 4 Megas 2:1 | C231: 4000 | D231: 2 a 1 | E231: 525.79
B232: Plan Empresarial 5 Megas 2:1 | C232: 5000 | D232: 2 a 1 | E232: 369.6
B234: Planes Empresariales 1:1 | C234: Velocidad KBPS Bajada | D234: Comprensión | E234: Precio Techo sin IVA
B235: Plan Empresarial 300 Kbps 1:1 | C235: 300 | D235: 1 a 1 | E235: 134
B236: Plan Empresarial 450 Kbps 1:1 | C236: 450 | D236: 1 a 1 | E236: 166.25
B237: Plan Empresarial 700 Kbps 1:1 | C237: 700 | D237: 1 a 1 | E237: 219.4
B238: Plan Empresarial 784 Kbps 1:1 | C238: 784 | D238: 1 a 1 | E238: 237
B239: Plan Empresarial 864 Kbps 1:1 | C239: 864 | D239: 1 a 1 | E239: 255
B240: Plan Empresarial 1.2 Megas 1:1 | C240: 1200 | D240: 1 a 1 | E240: 325.71
B241: Plan Empresarial 1.25 Megas 1:1 | C241: 1250 | D241: 1 a 1 | E241: 334
B242: Plan Empresarial 1.4 Megas 1:1 | C242: 1400 | D242: 1 a 1 | E242: 368.23
B243: Plan Empresarial 1.6 Megas 1:1 | C243: 1600 | D243: 1 a 1 | E243: 418
B244: Plan Empresarial 2.4 Megas 1:1 | C244: 2400 | D244: 1 a 1 | E244: 580.84
B245: Plan Empresarial 3 Megas 1:1 | C245: 3000 | D245: 1 a 1 | E245: 708.41
... 23 more rows

Sheet Linkotel S.A.
B2: Servicio de Telefonía Fija
B3: Plan Tarifario LINKOTEL S.A.
B8: =+Inicio!B8 -> Fecha de publicación: junio de 2013
B13: PLANES TARIFARIOS
D14: Pensión Mensual * USD | E14: Minutos gratis incluidos | F14: Notas Adicionales
B15: Servicio Básico Residencial | D15: 7.48 | E15: 150 | F15: Minutos gratuitos utilizables para llamadas On Net y Off Net
B16: Servicio Básico Comercial | D16: 11.38 | E16: 300 | F16: Minutos gratuitos utilizables para llamadas On Net. Las llamadas Off Net se computarán adicionalmente.
B17: * Estos valores son los que se notificaron mediante Oficio LINKO-215-2011
B18: Valores incluyen cargos de interconexión
B19: Valores no incluyen impuestos aplicables por Ley
B20: Vigencia: 01 enero de 2012
B24: Categoría RESIDENCIAL
B25: Productos | C25: Pensión Mensual | D25: Minutos On Net Incluidos sin costo adicional en la Pensión Mensual | E25: Minutos Off Net Incluidos sin costo adicional en la Pensión Mensual
B26: Servicio 100 | C26: 6.98 | D26: 100 | E26: 100
B27: Servicio 500 | C27: 10.98 | D27: 300 | E27: 200
B28: Servicio 1000 | C28: 15.98 | D28: 600 | E28: 400
B29: Servicio 2500 | C29: 30.98 | D29: 1500 | E29: 1000
B30: Servicio 5000 | C30: 55.98 | D30: 3000 | E30: 2000
B33: Categoría COMERCIAL
B34: Productos Básicos | C34: Pensión Mensual | D34: Minutos On Net Incluidos sin costo adicional en la Pensión Mensual | E34: Minutos Off Net Incluidos sin costo adicional en la Pensión Mensual
B35: Servicio 1000 | C35: 31.76 | D35: 600 | E35: 400
B36: Servicio 2500 | C36: 71.36 | D36: 1500 | E36: 1000
B37: Servicio 5000 | C37: 137.36 | D37: 3000 | E37: 2000
B38: Servicio 10000 | C38: 269.36 | D38: 2500 | E38: 7500
B40: Tanto para los Abonados de categoría Residencial (Plan 100 al Plan 5000 como para los Abonados de Categoría Comercial (plan 1000 al Plan 100000), que tienen contratasos Planes con Minutos incluidos, dichos Minutos sin costo serán exclusivamente imputables a llamadas On NET.
B41: Los minutos de llamada Local y Regional Off Net se computarán y facturarán, tanto para la categoría Residencial como Comercial, en forma adicional y de conformidad con la respectiva tarifa vigentes (USD 0,0185)
B43: Aplica exclusivamente para los abonados que contrataron planes con Minutos incluidos hasta agosto de 2011. Desde septiembre de 2011 no se promociona no omercializa sino únicamente los Planes de Servicio Básico Comercial y residencial, con las pesniones básicas y las tarifas que se notificaron en oficio Linko-215-2011
B45: Valores incluyen cargos de interconexión
B46: Valores no incluyen impuestos aplicables por Ley
B47: Vigencia: 01 enero de 2012
D54: Tarifas (minuto de Llamada)
B55: Servicio | D55: Residencial (en USD $) | E55: Comercial (en USD $)
B56: Pensión Básica Mensual "Servicio Básico" | D56: 7.48 | E56: 11.88
B57: Local | D57: 0.0185 | E57: 0.0185
B58: Nacional | D58: 0.035 | E58: 0.08
B59: Regional | D59: 0.0185 | E59: 0.0185
B60: Celular | D60: 0.18 | E60: 0.18
B61: Internacional | D61: Ver Anexo
B63: Valores incluyen cargos de interconexión
B64: Valores no incluyen impuestos aplicables por Ley
B65: Vigencia: 01 octubre de 2011
C68: Anexo Tarifas Inernacionales
C69: DESTINOS | E69: PRECIO
C70: Andorra | E70: 0.1
C71: Argentina | E71: 0.1
C72: Argentina-Bahia Blanca | E72: 0.1
C73: Argentina-Buenos Aires | E73: 0.1
C74: Argentina-Cordoba | E74: 0.1
C75: Argentina-Cordoba 2 | E75: 0.1
C76: Argentina-La Pampa | E76: 0.1
C77: Argentina-La Plata | E77: 0.1
C78: Argentina-Lujan | E78: 0.1
C79: Argentina-Mar del Plata | E79: 0.1
C80: Argentina-Maschwitz Zarate | E80: 0.1
C81: Argentina-Mendoza | E81: 0.1
C82: Argentina-Moreno | E82: 0.1
C83: Argentina-Neuquen | E83: 0.1
C84: Argentina-Pilar | E84: 0.1
C85: Argentina-Rosario | E85: 0.1
C86: Argentina-Salta | E86: 0.1
C87: Argentina-San Luis | E87: 0.1
C88: Argentina-Santa Fe | E88: 0.1
C89: Argentina-Tucuman | E89: 0.1
C90: Australia | E90: 0.1
C91: Australia-Melbourne | E91: 0.1
C92: Australia-Sydney | E92: 0.1
C93: Austria | E93: 0.1
C94: Bahamas | E94: 0.1
C95: Bahamas-Mobile | E95: 0.1
C96: Bangladesh-Chittagong | E96: 0.1
C97: Bangladesh-Dhaka | E97: 0.1
C98: Bangladesh-Sylhet | E98: 0.1
C99: Belgium | E99: 0.1
C100: Bolivia-Cochabamba | E100: 0.1
C101: Bolivia-La Paz | E101: 0.1
C102: Bolivia-Santa Cruz | E102: 0.1
C103: Brazil | E103: 0.1
C104: Brazil-Belem | E104: 0.1
C105: Brazil-Bello Horizonte | E105: 0.1
C106: Brazil-Brasilia | E106: 0.1
C107: Brazil-Campinas | E107: 0.1
C108: Brazil-Curitiba | E108: 0.1
C109: Brazil-Florianopolis | E109: 0.1
C110: Brazil-Fortaleza | E110: 0.1
C111: Brazil-Goiania | E111: 0.1
C112: Brazil-Londrina | E112: 0.1
C113: Brazil-Manaus | E113: 0.1
C114: Brazil-Maringa | E114: 0.1
C115: Brazil-Porto Alegre | E115: 0.1
C116: Brazil-Recife | E116: 0.1
C117: Brazil-Rio de Janeiro | E117: 0.1
C118: Brazil-Salvador | E118: 0.1
C119: Brazil-Sao Paulo | E119: 0.1
C120: Brazil-Sao Paulo State | E120: 0.1
C121: Brazil-Valadares Off-Net | E121: 0.1
C122: Brazil-Valadares On-Net | E122: 0.1
C123: Brazil-Vitoria | E123: 0.1
C124: Brazil-Vitoria On-net | E124: 0.1
C125: Brunei | E125: 0.1
C126: Brunei-Mobile | E126: 0.1
C127: Bulgaria | E127: 0.1
C128: Bulgaria-Sofia | E128: 0.1
C129: Canada | E129: 0.1
C130: Chile | E130: 0.1
C131: Chile-Santiago | E131: 0.1
C132: Chile-Valpariso | E132: 0.1
C133: China | E133: 0.1
C134: China-Mobile | E134: 0.1
C135: Colombia-Baranquilla | E135: 0.1
C136: Colombia-Bogota | E136: 0.1
C137: Colombia-Cali | E137: 0.1
C138: Costa Rica-Mobile | E138: 0.1
C139: Croatia | E139: 0.1
C140: Cyprus | E140: 0.1
C141: Czech Republic | E141: 0.1
C142: Czech Republic-Bruno | E142: 0.1
C143: Czech Republic-Havirov/Ostrava | E143: 0.1
C144: Czech Republic-Prague | E144: 0.1
C145: Denmark | E145: 0.1
C146: Estonia | E146: 0.1
C147: Finland | E147: 0.1
C148: Finland-Helsinki | E148: 0.1
C149: France | E149: 0.1
C150: French Antilles | E150: 0.1
C151: Georgia-Tblisi | E151: 0.1
C152: Germany | E152: 0.1
C153: Germany-Mobile Personal Numbers | E153: 0.1
C154: Gibraltar | E154: 0.1
C155: Greece | E155: 0.1
C156: Greece-Athens | E156: 0.1
C157: Greece-Thessaloniki | E157: 0.1
C158: Guadeloupe | E158: 0.1
C159: Guam | E159: 0.1
C160: Hong Kong | E160: 0.1
C161: Hong Kong-Mobile | E161: 0.1
C162: Hungary | E162: 0.1
C163: Hungary-Budapest | E163: 0.1
C164: Iceland | E164: 0.1
C165: Indonesia-Bandung | E165: 0.1
C166: Indonesia-Jakarta | E166: 0.1
C167: Indonesia-Surabaya | E167: 0.1
C168: Ireland | E168: 0.1
C169: Israel | E169: 0.1
C170: Italy | E170: 0.1
C171: Japan | E171: 0.1
C172: Japan-IP-Phone | E172: 0.1
C173: Japan-Osaka | E173: 0.1
C174: Japan-Tokyo | E174: 0.1
C175: Japan-Yokohama | E175: 0.1
C176: Kazakhstan-Almaty | E176: 0.1
C177: Korea (South) | E177: 0.1
C178: Korea (South)-Mobile-SK | E178: 0.1
C179: Korea (South)-Seoul | E179: 0.1
C180: Latvia-Riga | E180: 0.1
C181: Liechtenstein | E181: 0.1
C182: Luxembourg | E182: 0.1
C183: Macau | E183: 0.1
C184: Macau-Mobile | E184: 0.1
C185: Malawi | E185: 0.1
C186: Malawi-Mobile | E186: 0.1
C187: Malaysia | E187: 0.1
C188: Malaysia-Kuala Lumpur | E188: 0.1
C189: Malaysia-Mobile-Celcom | E189: 0.1
C190: Malaysia-Mobile-Digi | E190: 0.1
C191: Malaysia-Mobile-Maxis | E191: 0.1
C192: Mexico-Equal Access 1 | E192: 0.1
C193: Mexico-Equal Access 2 | E193: 0.1
C194: Mexico-Equal Access 3 | E194: 0.1
C195: Mexico-Guadalajara | E195: 0.1
C196: Mexico-Mexico City | E196: 0.1
C197: Mexico-Monterrey | E197: 0.1
C198: Mexico-Non-Equal Access 1 | E198: 0.1
C199: Monaco | E199: 0.1
C200: Monaco-Mobile | E200: 0.1
C201: Mongolia | E201: 0.1
C202: Netherlands | E202: 0.1
C203: New Zealand | E203: 0.1
C204: New Zealand-Auckland | E204: 0.1
C205: Nigeria-Lagos | E205: 0.1
C206: Nigeria-Mobile-Lagos | E206: 0.1
C207: Norway | E207: 0.1
C208: Panama | E208: 0.1
C209: Panama-Colon | E209: 0.1
C210: Panama-Panama City | E210: 0.1
C211: Peru | E211: 0.1
C212: Peru-Lima | E212: 0.1
C213: Poland | E213: 0.1
C214: Poland-Warsaw | E214: 0.1
C215: Portugal | E215: 0.1
C216: Russia | E216: 0.1
C217: Russia-Chelyabinsk | E217: 0.1
C218: Russia-Ekaterinburg | E218: 0.1
C219: Russia-Kazan | E219: 0.1
C220: Russia-Mobile | E220: 0.1
C221: Russia-Mobile Moscow | E221: 0.1
C222: Russia-Moscow | E222: 0.1
C223: Russia-Moscow Extension | E223: 0.1
C224: Russia-Nizhny Nogorod | E224: 0.1
C225: Russia-Novosibirsk | E225: 0.1
C226: Russia-Omsk | E226: 0.1
... 674 more rows

Sheet Setel S.A.
A2: Servicio de Telefonía Fija
A3: Plan Tarifario SETEL S.A.
A8: =+Inicio!B8 -> Fecha de publicación: junio de 2013
A13: FORMATO RT-PLT-02: PLANES DE TELEFONÍA FIJA
A15: Nombre del Plan Tarifario: | B15: Tarifa para llamadas a números 1700 para abonados residenciales
A16: Fecha de entrada en vigencia del Plan/Tarifa: | B16: 2013-05-01
A17: Condiciones generales del Plan/Tarifa: | B17: Tarifa para llamadas desde abonados residenciales a números 1700 a partir del 1ro de mayo de 2013. Los minutos a números 1700 no se incluyen en los minutos libres de la cuota fija mensual. Tarifa no incluye los impuestos aplicables.
A18: Descripción del Plan/Tarifa (Servicios que incluye, etc.) | B18: Código de Identificación del Plan o Tarifa ( Sistema de Medición de Facturación) | C18: Tarifa Mensual Total (US$) | D18: TelefonÍa fija | R18: Terminales de uso público | Z18: DATOS | AD18: Otros servicios adicionales
D19: Tarifa Mensual Básica (US$) | E19: Minutos incluidos ON NET (min.) | F19: Minutos incluidos OFF NET (min.) | G19: Tarifa por minuto de llamada Local (US$ por min.) | I19: Tarifa por minuto de llamada Nacional (US$ por min.) | K19: Tarifa por minuto de llamada Regional (US$ por min.) | M19: Tarifa por minuto de llamada LDI | O19: Tarifa por minuto de llamada a Móviles (US$ por min.) | R19: Tarifa por minuto de llamada Local (US$ por min.) | S19: Tarifa por minuto de llamada Nacional (US$ por min.) | T19: Tarifa por minuto de llamada Regional (US$ por min.) | U19: Tarifa por minuto de llamada LDI | W19: Tarifa por minuto de llamada a Móviles (US$ por min.) | Z19: Tarifa Mensual Básica (US$) | AA19: Kbps Incluidos en el Plan (Kbps) | AB19: Tarifa por Kbps dentro del Plan (US$ por Kbps) | AC19: Tarifa por Kbps adicional al Plan (US$ por Kbps)
G20: ON-NET | H20: OFF-NET | I20: ON-NET | J20: OFF-NET | K20: ON-NET | L20: OFF-NET | M20: Destino | N20: US$ por min. | O20: CONECEL S.A. | P20: OTECEL S.A. | Q20: CNT EP. | U20: Destino | V20: US$ por min. | W20: CONECEL S.A. | X20: OTECEL S.A. | Y20: CNT EP. | AD20: Detalle | AE20: Unidad de medida | AF20: Tarifa US$
A21: Llamadas a números 1700 | B21: 1700 | C21: N.A. | D21: N.A. | E21: N.A. | F21: N.A. | G21: N.A. | H21: N.A. | I21: N.A. | J21: N.A. | K21: N.A. | L21: N.A. | M21: N.A. | N21: N.A. | O21: N.A. | P21: N.A. | Q21: N.A. | R21: N.A. | S21: N.A. | T21: N.A. | U21: N.A. | V21: N.A. | W21: N.A. | X21: N.A. | Y21: N.A. | Z21: N.A. | AA21: N.A. | AB21: N.A. | AC21: N.A. | AD21: Llamadas a 1700 | AE21: minuto | AF21: 0.022
C23: 1e-33 | M23: 1e-33 | U23: 1e-33
A24: Destinos que incluyen cargos de Interconexión: | B24: N.A.
A25: Tarifas incluyen impuestos aplicables de Ley: | B25: NO
A28: Plan Telefonía Fija para clientes RESIDENCIALES
A29: Descripción del Plan | B29: Tarifa Básica Voz (US$) | C29: Minutos Locales On Net gratis incluidos (min) | D29: Minutos Locales gratis a cualquier operadora fija (min) | E29: Precio por minuto móvil (US$ por min.) | F29: Precio por minuto local adicional (US$ por min.) | G29: Precio por minuto regional (US$ por min.) | H29: Precio por minuto nacional (US$ por min.) | I29: Larga Distancia Internacional
A30: Plan Telefonía Fija de 3 dólares para clientes RESIDENCIALES | B30: 3 | C30: 500 | D30: 100 | E30: 0.135 | F30: 0.01 | G30: 0.02 | H30: 0.022 | I30: Tarifa LDI vigentes en los planes de US$ 8 y US$ 10
A31: Cargos de interconexión | B31: Se incluyen los cargos de interconexión con otros operadores
A32: Impuestos Aplicables de Ley | B32: No se incluyen los impuestos aplicables de Ley
A33: Restricciones aplicables al Plan | B33: Aplica en combinaciones triplepack y con forma de pago de crédito automático a cuenta corriente, a tarjeta de crédito y a cuenta de ahorros en el nivel 1 del buro de crédito
A35: Vigencia: 4 de septiembre de 2012
A38: Tipo Tarifa | B38: Tarifa anterior en USD/min, sin impuestos | C38: Nueva Tarifa en USD/ min, sin impuestos
A39: Tarifa para llamadas locales a otros operadores para abonados residenciales de otras ciudadaes distintas de Quito, Guayaquil y Cuenca | B39: 0.017 | C39: 0.01
A40: Tarifas incluyen los cargos de interconexión
A41: Tarifas no incluyen los impuestos aplicables de ley.
A42: Vigencia 11 de junio de 2012
A45: Tarifa para llamadas a números celulares de OTECEL y CONECEL
A46: Tipo Tarifa | B46: Tarifa en USD/min., sin impuesto hasta el minuto 80 | C46: Nueva Tarifa promocional desde el 25 de julio de 2012 hasta 7 de noviembre de 2012 a partir del minuto 81 en USD/min, sin impuestos
A47: Tarifa para llamadas a números celulares de OTECEL y CONECEL | B47: 0.135 | C47: 0.1
A48: Tarifas incluyen los cargos de interconexión correspondiente a cada operador
A49: Tarifas no incluyen los impuestos aplicables de ley.
A50: Vigencia 19 de marzo de 2012
A53: TELEFONÍA FIJA GRUPO TV CABLE
A54: RESIDENCIAL
A55: Plan | B55: Tarifa Básica | C55: Crédito libre otras operadoras fijas locales (minutos) | D55: Crédito libre dentro de nuestra red (minutos)
A56: Residencial 8 | B56: 8 | C56: 350 | D56: 350
A57: Residencial 10 | B57: 10 | C57: 650 | D57: 650
A58: Tarifa local | B58: Tarifa Regional | C58: Tarifa Nacional | D58: Tarifa Celular
A59: 0.01 | B59: 0.02 | C59: 0.022 | D59: 0.135
A60: Tarifas incluyen los cargos de interconexión
A61: Tarifas no incluyen los impuestos aplicables de ley.
A62: Vigencia 19 de marzo de 2012
A65: PLANES Y TARIFAS DEL SERVICIO REGULAR
A67: CARGOS GENERALES | B67: Instalación 1era línea (*1) (*2) | C67: Garantía por equipo (*3) | D67: Instalación 2da. Línea | E67: Cuota Fija Mensual (*5) | G67: Reinstalación por Línea (*7) | H67: Precio de traslado por Línea
B68: Una sola vez | D68: Una sola vez | E68: Valor | F68: Crédito Libre (*6)
A69: Residencial | B69: 100 | C69: 162 | D69: 60 | E69: 12 | F69: 8.5 | G69: 30 | H69: 30
A70: Comercial | B70: 100 | C70: 162 | D70: 60 | E70: 12 | F70: 4 | G70: 30 | H70: 30
A71: Comercial Inalámbrico(*4) | B71: Ver Tabla WLL | C71: Ver Tabla WLL | D71: Ver Tabla WLL | E71: 25 | F71: 17 | G71: 30 | H71: 60
A73: TARIFAS | B73: Llamada Local | C73: Llamada Regional | D73: Llamada Nacional | E73: Llamada Celular | F73: Larga Distancia Internacional (Plan Regular) | H73: Crédito Mensual Máximo Por Defecto (*8)
B74: $ por Minuto | C74: $ por Minuto | D74: $ por Minuto | E74: $ por Minuto | F74: $ por Minuto
A75: Residencial | B75: 0.01 | C75: 0.02 | D75: 0.04 | E75: 0.25 | F75: Ver Tabla REG-LDI | H75: 40
A76: Comercial | B76: 0.022 | C76: 0.04 | D76: 0.09 | E76: 0.25 | F76: Ver Tabla REG-LDI | H76: 100
A77: Comercial Inalámbrico | B77: 0.022 | C77: 0.04 | D77: 0.09 | E77: 0.25 | F77: Ver Tabla REG-LDI | H77: 100
A79: *1 Si el cliente posee contrato de Cargo Mensual (CM) activo en el valor de suscripción se la primera línea se realizará un
A80: descuento de $ 40 por el CM que se recupera al instalar un terminal adaptador de multimedia (MTA.).
A82: *2 La instalación del MTA con cable coaxial. Incluye un máximo de 50 metros de cable coaxial desde el último poste o
A83: desde el tranceptor para instalaciones WLL, hasta el lugar de instalación del MTA. Para instalaciones con E1, V5.2 o SIP,
A84: la acometida desde el nodo SDH más cercano incluye un máximo de 1000 mt. Hasta el sitio de instalación de los
A85: equipos. Por cada línea contratada la instalación interna incluye 15 mt. De par telefónico, 1 cajetín RJ11 conector RJ11 y
A86: 1 teléfono. La instalación del cable coaxial y de los pares telefónicos se hará con cable visto, caso contrario, se cobrará
A87: al cliente materiales y mano de obra extra. El exceso de cable de par telefónico se facturará a $ 0.50 por mt., y el exceso
A88: de cable coaxial se facturará previa confirmación del Departamento de Instalaciones.
A90: * 3 El valor de Garantía por equipo incluye el IVA, y debe ser respaldado por una letra de cambio o un pagaré a favor de
A91: Grupo Tvcable.
A93: *4 Para la instalación de nuevos Servicios de Telefonía Regular con Tecnología WLL, aplican los precios y garantía definiti-
A94: vos en el Tabla de Intalación para Comercial Inalámbrico. La instalación del Servicio de Telefonía sobre infraestructura
A95: WLL existente en clientes de Internet con CM Inalámbrico se considerará como servicio adicional, aplicándose el precio
A96: de instalación por línea y reemplazando el CM por un MTA para 2 líneas. Esto siempre que el cliente mantenga el contrato
A97: comercial inalámbrico y las garantías sobre los equipos WLL.
A99: *5 CUOTA FIJA MENSUAL: Para las líneas en que a más del servicio de telefonía regular habilite el servicio de Planeta
A100: (LDI prepago) con los planes Plata, Oro y Platino, se aplicará una cuota fija mensual de $0, sin crédito libre, con
A101: excepción de las líneas con acceso WLL en las que la Cuota Fija Mensual será de $13 con un crédito de $ 4. Para el
A102: caso que se habilite el servicio Planeta Bronce, la cuota fija se modificará a $6 y con crédito libre de $2 aplicable
A103: solamente al servicio residencial, y para el caso de líneas atendidas con acceso a WLL, en las que se habilite el plan
A104: planeta Bronce la cuota fija mensual se reducirá a $19 con crédito libre de $11
A106: *6 CREDITO LIBRE: El crédito libre incluido en la cuota fija mensual se aplica para llamadas locales, regionales y nacionales
A107: (con operadores fijos), debiendo descontarse el valor de estas el valor de crédito libre asignado a cada tipo de servicio.
A109: *7 REINSTALACION DE LINEAS: La reinstalación aplica cuando un cliente que canceló el servicio o que se le fue
A110: desinstalado lo solicita nuevamente, en cuyo caso pagará $30 más IVA por la reinstalación de cada línea.
A112: *8 El cliente puede solicitar renovación del crédito en incrementos de múltiplos de $ 5, hasta acumular un crédito máximo
A113: equivalente al doble del valor del crédito por defecto definido para el plan contratado. Para ampliación de crédito
A114: mensual por defectos se requiere una letra de cambio o pagaré por el mismo valor de la ampliación del crédito
A117: LARGA DISTANCIA INTERNACIONAL
A119: PLANES Y TARIFAS DEL SERVICIO PLANETA
A120: TARIFAS | B120: Instalación (*1) (*2) | C120: Garantía por Equipos (*3) | D120: Pre-pago Mensual Mínimo (*4) | E120: Larga Distancia Internacional | F120: Crédito Mensual Máximo por Defecto (*5) | G120: Instalación por 2da. Línea | H120: Precio de Reinstalación por Línea
B121: Una sola vez | D121: Valor ($) | E121: $ x minuto
A122: Planeta Bronce (*6) | B122: 100 | C122: 162 | D122: 15 | E122: Ver Tabla LDI | G122: 60 | H122: 50
A123: Planeta Plata | B123: 100 | C123: 162 | D123: 25 | E123: Ver Tabla LDI | F123: 30 | G123: 60 | H123: 50
A124: Planeta Oro | B124: 100 | C124: 162 | D124: 50 | E124: Ver Tabla LDI | F124: 50 | G124: 60 | H124: 50
A125: Planeta Platino * 7 | B125: Ver Tabla (* 8) | C125: 162 | D125: Ver Tabla (* 8) | E125: Ver Tabla LDI | F125: 100 | G125: 60 | H125: 50
A127: * 1 Si el cliente posee contrato de CM activo. en el valor de suscripción se la primera línea se realizará un descuento de
A128: $ 40 por el CM que se recupera al instalar un MTA.
A130: *2 La instalación del MTA con cable coaxial. Incluye un máximo de 50 metros de cable coaxial desde el último poste o
A131: desde el tranceptor para instalaciones WLL, hasta el lugar de instalación del MTA. Para instalaciones con E1, V5.2 o SIP,
A132: la acometida desde el nodo SDH más cercano incluye un máximo de 1000 mt. Hasta el sitio de instalación de los
A133: equipos. Por cada línea contratada la instalación interna incluye 15 mt. De par telefónico, 1 cajatín RJ11 conector RJ11 y
A134: 1 teléfono. La instalación del cable coaxial y de los pares telefónicos se hará con cable visto, caso contrario, se cobrará
A135: al cliente materiales y mano de obra extra. El exceso de cable de par telefónico se facturará a $0,50 por mt.
A136: Y el exceso de cable coaxial se facturará previa confirmación del Departamento de Instalaciones.
A138: * 3 El valor de Garantía por equipo incluye el IVA, y debe ser respaldado por una letra de cambio o un pagaré a favor de
A139: Grupo Tvcable
A141: *4 Se facturará Pre-pago Mensual (según plan contratado) para renovar el crédito mensual para LDI. La facturacoón del
A142: Pre-pago Mensual Mínimo se hará las fechas establecidas para la facturación. Las facturas generadas mensualmente
A143: contendrán el Pre-pago Mensual Mínimo y los incrementos/renovaciones de Crédito Mensual que haya solicitado el
A144: cliente desde la última facturación.
A146: *5 Manejo del Crédito Mensual máximo por Defecto. El cliente puede solicitar renovación del crédito en incrementos de
A147: múltiplos de 5 hasta acumular un crédito máximo equivalente al doble del valor definido para el plan contratado. Si
A148: necesita sobrepasar el crédito mensual Máximo por Defecto antes del siguiente período de facturación,debe acercarse
A149: al Front Office para pagar el exceso sobre el Pre-pago Mensual Mínimo y así poder incrementar nuevamente su crédito
A150: al mensual máximo definido para su plan.
A152: *6 El Plan Bronce se ofrecerá a clientes que tengan instalada una línea telefónica con Servicio Regular de SETEL
A154: *7 Para el Plan Platino se consideran mintos de prepago a partir de $ 100 de manera que los clientes de alto consumo de
A155: LDI puedan Prepagar para cada línea montos superiores a $ 100 según la siguiente tabla:
A157: TABLA * 8
B159: Crédito Mensual Mínimo | C159: Crédito Mensual Máximo por Defecto
A161: Montos Pre-Pago para Planeta Platino | B161: 100 | C161: 100
B162: 150 | C162: 150
B163: 200 | C163: 200
B164: 300 | C164: 300
B165: 400 | C165: 400
B166: 500 | C166: 500
B167: 750 | C167: 750
B168: 1000 | C168: 1000
B169: 1500 | C169: 1500
B170: 2000 | C170: 2000
B171: 2500 | C171: 2500
B172: 3000 | C172: 3000
B173: 4000 | C173: 4000
B174: 4500 | C174: 4500
B175: 5000 | C175: 5000
A178: TABLA LARGA DISTANCIA INTERNACIONAL (LDI)
B179: USD
B180: PREPAGO | F180: Post-Pago | G180: Tipo Llamada
B181: Bronce | C181: Plata | D181: Oro | E181: Platino | F181: Tarifas Regulares
A182: Afganistán | B182: 0.563 | C182: 0.543 | D182: 0.518 | E182: 0.495 | F182: 0.603 | G182: Fijo
A183: Afganistán | B183: 0.558 | C183: 0.538 | D183: 0.513 | E183: 0.49 | F183: 0.598 | G183: Celular
A184: Albania | B184: 0.247 | C184: 0.227 | D184: 0.202 | E184: 0.179 | F184: 0.455 | G184: Fijo
A185: Albania | B185: 0.384 | C185: 0.364 | D185: 0.339 | E185: 0.316 | F185: 0.424 | G185: Celular
A186: Albania-Tirania | B186: 0.247 | C186: 0.227 | D186: 0.202 | E186: 0.179 | F186: 0.455
A187: Algelia | B187: 0.317 | C187: 0.297 | D187: 0.272 | E187: 0.249 | F187: 0.357 | G187: Fijo
A188: Algelia | B188: 0.309 | C188: 0.289 | D188: 0.264 | E188: 0.241 | F188: 0.455 | G188: Celular
A189: American Samoa | B189: 0.213 | C189: 0.193 | D189: 0.168 | E189: 0.145 | F189: 0.455
A190: Andorra | B190: 0.386 | C190: 0.366 | D190: 0.341 | E190: 0.318 | F190: 0.426 | G190: Fijo
A191: Andorra | B191: 0.472 | C191: 0.452 | D191: 0.427 | E191: 0.404 | F191: 0.512 | G191: Celular
A192: Angola | B192: 0.33 | C192: 0.31 | D192: 0.285 | E192: 0.262 | F192: 0.37 | G192: Fijo
A193: Angola | B193: 0.417 | C193: 0.397 | D193: 0.372 | E193: 0.349 | F193: 0.457 | G193: Celular
A194: Anguilla | B194: 0.332 | C194: 0.312 | D194: 0.287 | E194: 0.264 | F194: 0.372 | G194: Fijo
A195: Anguilla | B195: 0.295 | C195: 0.275 | D195: 0.25 | E195: 0.227 | F195: 0.343 | G195: Celular
A196: Antartica | B196: 2.855 | C196: 2.835 | D196: 2.81 | E196: 2.787 | F196: 2.895
A197: Antartica | B197: 3.188 | C197: 3.168 | D197: 3.143 | E197: 3.12 | F197: 3.228 | G197: Audiotext
A198: Antartica | B198: 2.855 | C198: 2.835 | D198: 2.81 | E198: 2.787 | F198: 2.895 | G198: Casey
A199: Antigua y Babuda | B199: 0.315 | C199: 0.295 | D199: 0.27 | E199: 0.247 | F199: 0.355 | G199: Fijo
A200: Antigua y Babuda | B200: 0.315 | C200: 0.295 | D200: 0.27 | E200: 0.247 | F200: 0.355 | G200: Audiotext
A201: Antigua y Babuda | B201: 0.28 | C201: 0.26 | D201: 0.235 | E201: 0.212 | F201: 0.32 | G201: Celular
A202: Argentina | B202: 0.142 | C202: 0.122 | D202: 0.097 | E202: 0.074 | F202: 0.343 | G202: Fijo
A203: Argentina_Buenos Aires | B203: 0.142 | C203: 0.122 | D203: 0.097 | E203: 0.074 | F203: 0.343 | G203: Fijo
A204: Argentina | B204: 0.377 | C204: 0.357 | D204: 0.332 | E204: 0.309 | F204: 0.417 | G204: Celular
A205: Argentina-Córdova | B205: 0.142 | C205: 0.122 | D205: 0.097 | E205: 0.074 | F205: 0.343 | G205: Fijo
A206: Argentina_La Plata | B206: 0.142 | C206: 0.122 | D206: 0.097 | E206: 0.074 | F206: 0.343 | G206: Fijo
A207: Argentina_Mar del Plata | B207: 0.142 | C207: 0.122 | D207: 0.097 | E207: 0.074 | F207: 0.343 | G207: Fijo
A208: Argentina-Mendoza | B208: 0.142 | C208: 0.122 | D208: 0.097 | E208: 0.074 | F208: 0.343 | G208: Fijo
A209: Argentina-Rosario | B209: 0.142 | C209: 0.122 | D209: 0.097 | E209: 0.074 | F209: 0.343 | G209: Fijo
A210: Armenia | B210: 0.22 | C210: 0.2 | D210: 0.175 | E210: 0.152 | F210: 0.455 | G210: Fijo
A211: Armenia | B211: 0.357 | C211: 0.337 | D211: 0.312 | E211: 0.289 | F211: 0.397 | G211: Celular
A212: Aruba | B212: 0.309 | C212: 0.289 | D212: 0.264 | E212: 0.241 | F212: 0.349 | G212: Fijo
A213: Aruba | B213: 0.369 | C213: 0.349 | D213: 0.324 | E213: 0.301 | F213: 0.409 | G213: Celular
A214: Ascención, Isla | B214: 1.032 | C214: 1.012 | D214: 0.987 | E214: 0.964 | F214: 1.072 | G214: Fijo
A215: Australia | B215: 0.144 | C215: 0.124 | D215: 0.099 | E215: 0.076 | F215: 0.455 | G215: Fijo
A216: Australia | B216: 0.323 | C216: 0.303 | D216: 0.278 | E216: 0.255 | F216: 0.363 | G216: Celular
A217: Australia MelBourne | B217: 0.144 | C217: 0.124 | D217: 0.099 | E217: 0.076 | F217: 0.455 | G217: Fijo
A218: Australia Sidney | B218: 0.144 | C218: 0.124 | D218: 0.099 | E218: 0.076 | F218: 0.455 | G218: Fijo
A219: Austria | B219: 0.159 | C219: 0.139 | D219: 0.114 | E219: 0.091 | F219: 0.364 | G219: Fijo
A220: Austria | B220: 0.335 | C220: 0.315 | D220: 0.29 | E220: 0.267 | F220: 0.375 | G220: Celular
A221: Austria NGN | B221: 0.488 | C221: 0.468 | D221: 0.443 | E221: 0.42 | F221: 0.528 | G221: Fijo
A222: Austria Viena | B222: 0.159 | C222: 0.139 | D222: 0.114 | E222: 0.091 | F222: 0.364 | G222: Fijo
A223: Azerbaiyana | B223: 0.293 | C223: 0.273 | D223: 0.248 | E223: 0.225 | F223: 0.333 | G223: Fijo
A224: Azerbaiyana | B224: 0.324 | C224: 0.304 | D224: 0.279 | E224: 0.256 | F224: 0.455 | G224: Celular
A225: Bahamas | B225: 0.225 | C225: 0.205 | D225: 0.18 | E225: 0.157 | F225: 0.343 | G225: Fijo- Celular
A226: Bahrain | B226: 0.496 | C226: 0.476 | D226: 0.451 | E226: 0.428 | F226: 0.536 | G226: Fijo
A227: Bahrain | B227: 0.328 | C227: 0.308 | D227: 0.283 | E227: 0.26 | F227: 0.368 | G227: Celular
A228: Bahrain-NGN | B228: 0.496 | C228: 0.476 | D228: 0.451 | E228: 0.428 | F228: 0.536 | G228: Fijo
A229: Bangladesh | B229: 0.23 | C229: 0.21 | D229: 0.185 | E229: 0.162 | F229: 0.455 | G229: Fijo
A230: Bangladesh | B230: 0.216 | C230: 0.196 | D230: 0.171 | E230: 0.148 | F230: 0.455 | G230: Celular
A231: Bangladesh-Chittagong | B231: 0.23 | C231: 0.21 | D231: 0.185 | E231: 0.162 | F231: 0.455 | G231: Fijo
A232: Bangladesh - Dhaka | B232: 0.23 | C232: 0.21 | D232: 0.185 | E232: 0.162 | F232: 0.455 | G232: Fijo
A233: Bangladesh-Sylhet | B233: 0.23 | C233: 0.21 | D233: 0.185 | E233: 0.162 | F233: 0.455 | G233: Fijo
A234: Barbados | B234: 0.389 | C234: 0.369 | D234: 0.344 | E234: 0.321 | F234: 0.429 | G234: Fijo
A235: Barbados | B235: 0.426 | C235: 0.406 | D235: 0.381 | E235: 0.358 | F235: 0.466 | G235: Celular
A236: Belarús | B236: 0.448 | C236: 0.428 | D236: 0.403 | E236: 0.38 | F236: 0.488 | G236: Fijo
A237: Belarús | B237: 0.425 | C237: 0.405 | D237: 0.38 | E237: 0.357 | F237: 0.465 | G237: Celular
A238: Belarús-Minsk | B238: 0.448 | C238: 0.428 | D238: 0.403 | E238: 0.38 | F238: 0.488 | G238: Fijo
A239: Bélgica | B239: 0.15 | C239: 0.13 | D239: 0.105 | E239: 0.082 | F239: 0.364 | G239: Fijo
A240: Bélgica | B240: 0.427 | C240: 0.407 | D240: 0.382 | E240: 0.359 | F240: 0.467 | G240: Celular
A241: Bélice | B241: 0.4 | C241: 0.38 | D241: 0.355 | E241: 0.332 | F241: 0.44 | G241: Fijo
A242: Bélice | B242: 0.432 | C242: 0.412 | D242: 0.387 | E242: 0.364 | F242: 0.472 | G242: Celular
A243: Bélice - Special Services | B243: 0.4 | C243: 0.38 | D243: 0.355 | E243: 0.332 | F243: 0.44 | G243: Fijo
A244: Benin | B244: 0.208 | C244: 0.188 | D244: 0.163 | E244: 0.14 | F244: 0.455 | G244: Fijo
A245: Benin | B245: 0.233 | C245: 0.213 | D245: 0.188 | E245: 0.165 | F245: 0.455 | G245: Celular
A246: Bermudas | B246: 0.208 | C246: 0.188 | D246: 0.163 | E246: 0.14 | F246: 0.343 | G246: Fijo- Celular
A247: Bhután | B247: 0.325 | C247: 0.305 | D247: 0.28 | E247: 0.257 | F247: 0.365 | G247: Fijo
... 502 more rows

Sheet Ecuadortelecom S.A
A2: Servicio de Telefonía Fija
A3: Plan Tarifario ECUADORTELECOM S.A.
A8: =+Inicio!B8 -> Fecha de publicación: junio de 2013
A13: FORMATO RT-PLT-02: PLANES DE TELEFONÍA FIJA
A15: Nombre del Plan Tarifario: | B15: PLAN VOZ 150
A16: Fecha de entrada en vigencia del Plan/Tarifa: | B16: 2013-05-06
A17: Condiciones generales del Plan/Tarifa: | B17: Se apertura el destino Argentina Móvil a una tarifa por minuto de $0,20 + IMP
A18: Descripción del Plan/Tarifa (Servicios que incluye, etc.) | B18: Código de Identificación del Plan o Tarifa ( Sistema de Medición de Facturación) | C18: Tarifa Mensual Total (US$) | D18: TelefonÍa fija | R18: Terminales de uso público | Z18: DATOS | AD18: Otros servicios adicionales
D19: Tarifa Mensual Básica (US$) | E19: Minutos incluidos ON NET (min.) | F19: Minutos incluidos OFF NET (min.) | G19: Tarifa por minuto de llamada Local (US$ por min.) | I19: Tarifa por minuto de llamada Nacional (US$ por min.) | K19: Tarifa por minuto de llamada Regional (US$ por min.) | M19: Tarifa por minuto de llamada LDI | O19: Tarifa por minuto de llamada a Móviles (US$ por min.) | R19: Tarifa por minuto de llamada Local (US$ por min.) | S19: Tarifa por minuto de llamada Nacional (US$ por min.) | T19: Tarifa por minuto de llamada Regional (US$ por min.) | U19: Tarifa por minuto de llamada LDI | W19: Tarifa por minuto de llamada a Móviles (US$ por min.) | Z19: Tarifa Mensual Básica (US$) | AA19: Kbps Incluidos en el Plan (Kbps) | AB19: Tarifa por Kbps dentro del Plan (US$ por Kbps) | AC19: Tarifa por Kbps adicional al Plan (US$ por Kbps)
G20: ON-NET | H20: OFF-NET | I20: ON-NET | J20: OFF-NET | K20: ON-NET | L20: OFF-NET | M20: Destino | N20: US$ por min. | O20: CONECEL S.A. | P20: OTECEL S.A. | Q20: CNT EP. | U20: Destino | V20: US$ por min. | W20: CONECEL S.A. | X20: OTECEL S.A. | Y20: CNT EP. | AD20: Detalle | AE20: Unidad de medida | AF20: Tarifa US$
A21: Plan Voz 150 | B21: 1111 | M21: Argentina Móvil | N21: 0.2
C23: 1e-33 | M23: 1e-33 | U23: 1e-33
A24: Destinos que incluyen cargos de Interconexión: | B24: Destinos Internacionales
A25: Tarifas incluyen impuestos aplicables de Ley: | B25: Se debe agregar IVA
A28: FORMATO RT-PLT-02: PLANES DE TELEFONÍA FIJA
A30: Nombre del Plan Tarifario: | B30: Plan Comercial Flex
A31: Fecha de entrada en vigencia del Plan/Tarifa: | B31: 2013-05-06
A32: Condiciones generales del Plan/Tarifa: | B32: Se modifica las condiciones generales de contratación comercial del Plan Comercial Flex a partir de tres líneas. Las condiciones iniciales preveian la contratación mínima de cinco líneas.
A33: Descripción del Plan/Tarifa (Servicios que incluye, etc.) | B33: Código de Identificación del Plan o Tarifa ( Sistema de Medición de Facturación) | C33: Tarifa Mensual Total (US$) | D33: TelefonÍa fija | R33: Terminales de uso público | Z33: DATOS | AD33: Otros servicios adicionales
D34: Tarifa Mensual Básica (US$) | E34: Minutos incluidos ON NET (min.) | F34: Minutos incluidos OFF NET (min.) | G34: Tarifa por minuto de llamada Local (US$ por min.) | I34: Tarifa por minuto de llamada Nacional (US$ por min.) | K34: Tarifa por minuto de llamada Regional (US$ por min.) | M34: Tarifa por minuto de llamada LDI | O34: Tarifa por minuto de llamada a Móviles (US$ por min.) | R34: Tarifa por minuto de llamada Local (US$ por min.) | S34: Tarifa por minuto de llamada Nacional (US$ por min.) | T34: Tarifa por minuto de llamada Regional (US$ por min.) | U34: Tarifa por minuto de llamada LDI | W34: Tarifa por minuto de llamada a Móviles (US$ por min.) | Z34: Tarifa Mensual Básica (US$) | AA34: Kbps Incluidos en el Plan (Kbps) | AB34: Tarifa por Kbps dentro del Plan (US$ por Kbps) | AC34: Tarifa por Kbps adicional al Plan (US$ por Kbps)
G35: ON-NET | H35: OFF-NET | I35: ON-NET | J35: OFF-NET | K35: ON-NET | L35: OFF-NET | M35: Destino | N35: US$ por min. | O35: CONECEL S.A. | P35: OTECEL S.A. | Q35: CNT EP. | U35: Destino | V35: US$ por min. | W35: CONECEL S.A. | X35: OTECEL S.A. | Y35: CNT EP. | AD35: Detalle | AE35: Unidad de medida | AF35: Tarifa US$
A36: Plan Comercial Flex | B36: 530 | C36: 7 | D36: 7 | M36: Usa y Canadá ( fijo o móvil ) | N36: 0.09
M37: España e Italia (fijo ) | N37: 0.09
M38: España e Italia (móvil ) | N38: 0.3
M39: Argentina fijo | N39: 0.13
M40: Argentina móvil | N40: 0.2
M41: Chile | N41: 0.22
M42: Chile rural | N42: 0.5
M43: Bolivia | N43: 0.22
M44: Colombia y Perú ( fijo y móvil ) | N44: 0.19
M45: Venezuela | N45: 0.22
M46: México | N46: 0.19
M47: China | N47: 0.25
M48: Costa Rica | N48: 0.19
M49: Cuba | N49: 1
M50: Resto de América | N50: 0.22
M51: Brasil ( Fijo y Movil ) | N51: 0.22
M52: Resto de América Otros (1) | N52: 0.3
M53: Serbia | N53: 0.5
M54: Países de Europa | N54: 0.35
M55: Japón | N55: 0.3
M56: Móvil Maritimo y Antártica | N56: 6.8
M57: Resto del mundo (2) | N57: 0.39
M58: Corea del Norte | N58: 0.6
C60: 1e-33 | M60: 1e-33 | U60: 1e-33
A61: Destinos que incluyen cargos de Interconexión: | B61: Destinos locales, Nacionales, Regionales, Celulares e Internacionales
A62: Tarifas incluyen impuestos aplicables de Ley: | B62: Se debe agregar IVA
A65: FORMATO RT-PLT-02: PLANES DE TELEFONÍA FIJA
A67: Nombre del Plan Tarifario: | B67: PLAN ESPECIAL 100
A68: Fecha de entrada en vigencia del Plan/Tarifa: | B68: 2013-05-03
A69: Condiciones generales del Plan/Tarifa: | B69: Se modifica las condiciones de contratación del plan para que sólo pueda ser contratado por personas naturales con discapacidad o personas juridicas dedicadas al cuidado de personas con discapacidad que cumplan con los requisitos que se detallan en el Anexo 1 adjunto.
A70: Descripción del Plan/Tarifa (Servicios que incluye, etc.) | B70: Código de Identificación del Plan o Tarifa ( Sistema de Medición de Facturación) | C70: Tarifa Mensual Total (US$) | D70: TelefonÍa fija | R70: Terminales de uso público | Z70: DATOS | AD70: Otros servicios adicionales
D71: Tarifa Mensual Básica (US$) | E71: Minutos incluidos ON NET (min.) | F71: Minutos incluidos OFF NET (min.) | G71: Tarifa por minuto de llamada Local (US$ por min.) | I71: Tarifa por minuto de llamada Nacional (US$ por min.) | K71: Tarifa por minuto de llamada Regional (US$ por min.) | M71: Tarifa por minuto de llamada LDI | O71: Tarifa por minuto de llamada a Móviles (US$ por min.) | R71: Tarifa por minuto de llamada Local (US$ por min.) | S71: Tarifa por minuto de llamada Nacional (US$ por min.) | T71: Tarifa por minuto de llamada Regional (US$ por min.) | U71: Tarifa por minuto de llamada LDI | W71: Tarifa por minuto de llamada a Móviles (US$ por min.) | Z71: Tarifa Mensual Básica (US$) | AA71: Kbps Incluidos en el Plan (Kbps) | AB71: Tarifa por Kbps dentro del Plan (US$ por Kbps) | AC71: Tarifa por Kbps adicional al Plan (US$ por Kbps)
G72: ON-NET | H72: OFF-NET | I72: ON-NET | J72: OFF-NET | K72: ON-NET | L72: OFF-NET | M72: Destino | N72: US$ por min. | O72: CONECEL S.A. | P72: OTECEL S.A. | Q72: CNT EP. | U72: Destino | V72: US$ por min. | W72: CONECEL S.A. | X72: OTECEL S.A. | Y72: CNT EP. | AD72: Detalle | AE72: Unidad de medida | AF72: Tarifa US$
A73: Plan Especial 100 | B73: 1123 | C73: 1 | D73: 1 | G73: 0.01 | H73: 0.01 | I73: 0.02 | J73: 0.02 | K73: 0.02 | L73: 0.02 | M73: USA y Canadá (fijo o móvil) | N73: $ 0.09 | O73: 0.135 | P73: 0.135 | Q73: 0.135
M74: España e Italia (fijo) | N74: $ 0.09
M75: España e Italia (móvil) | N75: $ 0.30
M76: Argentina (fijo) | N76: $0.13
M77: Argentina (móvil) | N77: $0.20
M78: Chile | N78: $ 0.22
M79: Bolivia | N79: $ 0.22
M80: Colombia | N80: $ 0.19
M81: Venezuela | N81: $ 0.22
M82: Perú | N82: $ 0.19
M83: México | N83: $ 0.19
M84: China | N84: $ 0.25
M85: Costa Rica | N85: $ 0.19
M86: Cuba | N86: $ 1.00
M87: Japón | N87: $ 0.30
M88: Corea del Norte | N88: $ 0.60
M89: Antártica | N89: $ 6.80
M90: Serbia | N90: $0.50
M91: Resto de América | N91: $ 0.22
M92: Resto de America Otros(1) | N92: $0.30
M93: Resto de Europa | N93: $ 0.35
M94: Resto del mundo | N94: $0.39
M95: Resto del mundo otros (2) | N95: 0.85
M96: Móvil Marítimo | N96: $ 6.80
C98: 1e-33 | M98: 1e-33 | U98: 1e-33
A99: Destinos que incluyen cargos de Interconexión: | B99: Destinos locales, Nacionales, Regionales, Celulares e Internacionales
A100: Tarifas incluyen impuestos aplicables de Ley: | B100: Se debe agregar IVA
A103: FORMATO RT-PR-02: PROMOCIONES DE TELEFONÍA FIJA
A105: Nombre de la Promoción: | C105: Descuento planes comerciales
A107: Fecha de entrada en vigencia de la Promoción/Tarifa promocional: | C107: 2013-04-06
A108: Fecha de finalización de la Promoción/Tarifa promocional: | C108: 2013-07-31
A110: Condiciones generales de la Promoción/Tarifa promocional: | C110: A continuación su descripción: Descuento del 100% en el derecho de inscripción del producto de telefonía HFC Comercial y Residencial desde el 6 de abril del 2013 hasta el 31 de julio del 2013. Plan Comercial Básico, Plan Comercial 500, Plan Comercial Flex , Plan Voz básico , Plan Voz 150, Plan Voz 250, Plan Voz 550, Plan Voz 1750 , Plan Voz 2200 , Plan Especial 100.
A112: Descripción de la Promoción/Tarifa promocional (Servicios que incluye, etc.) | C112: Código de Identificación del Plan/Tarifa * | D112: Tarifa Total (US$) | R112: Terminales de Uso Público | Z112: DATOS | AC112: Otros servicios adicionales
E113: Minutos incluidos ON NET (min.) | F113: Minutos incluidos OFF NET (min.) | G113: Tarifa por minuto de llamada Local (US$ por min.) | I113: Tarifa por minuto de llamada Nacional (US$ por min.) | K113: Tarifa por minuto de llamada Regional (US$ por min.) | M113: Tarifa por minuto de llamada LDI | O113: Tarifa por minuto de llamada a Móviles (US$ por min.) | R113: Tarifa por minuto de llamada Local (US$ por min.) | S113: Tarifa por minuto de llamada Nacional (US$ por min.) | T113: Tarifa por minuto de llamada Regional (US$ por min.) | U113: Tarifa por minuto de llamada LDI | W113: Tarifa por minuto de llamada a Móviles (US$ por min.) | Z113: Kbps Incluidos en la Promoción (Kbps) | AA113: Tarifa por Kbps dentro de la Promoción (US$ por Kbps) | AB113: Tarifa por Kbps adicional a la Promoción (US$ por Kbps)
G114: ON-NET | H114: OFF-NET | I114: ON-NET | J114: OFF-NET | K114: ON-NET | L114: OFF-NET | M114: Destino | N114: US$ por min. | O114: CONECEL S.A. | P114: OTECEL S.A. | Q114: CNT EP. | U114: Destino | V114: US$ por min. | W114: CONECEL S.A. | X114: OTECEL S.A. | Y114: CNT EP. | AC114: Detalle | AD114: Unidad de medida | AE114: Tarifa US$
A115: Suscripción del Plan Comercial Básico | C115: 430 | D115: 49.9
A116: Suscripción del Plan Comercial 500 | C116: 478 | D116: 49.9
A117: Suscripción del Plan Comercial Flex | C117: 530 | D117: 49.9
A118: Suscripción del Plan Voz básico Plus | C118: 663 | D118: 49.9
A119: Suscripción del Plan Voz 150 | C119: 1111 | D119: 49.9
A120: Suscripción del Plan Voz 250 | C120: 898 | D120: 49.9
A121: Suscripción del Plan Voz 550 | C121: 897 | D121: 49.9
A122: Suscripción del Plan Voz 1750 | C122: 550 | D122: 49.9
A123: Suscripción del Plan Voz 2200 | C123: 551 | D123: 49.9
A124: Suscripción del Plan Especial 100 | C124: 1123 | D124: 49.9
A126: Destinos que incluyen cargos de Interconexión:
A127: Tarifas incluyen impuestos aplicables de Ley:
A130: FORMATO RT-PLT-02: PLANES DE TELEFONÍA FIJA
A132: Nombre del Plan Tarifario: | B132: MODIFICACION DE TARIFAS A DESTINOS COOK ISLAND, MALDIVAS ISLAND Y TIMOR DELESTE
A133: Fecha de entrada en vigencia del Plan/Tarifa: | B133: 2013-03-19
A134: Condiciones generales del Plan/Tarifa: | B134: Se excluyen del Grupo Resto del Mundo a los paises Cook Island, Maldiva Island y Timor del Este, los que pasarán a ser parte del Grupo Destino Resto del Mundo Otros (Resto del Mndo) cuya tarifa por minuto es US$ 0,85 + IVA. La modificación de tarifa aplica para los planes detallados a continuación con su respectivo ID de Tarifa de los destinos a modificar.
A135: Descripción del Plan/Tarifa (Servicios que incluye, etc.) | B135: Código de Identificación del Plan o Tarifa ( Sistema de Medición de Facturación) | C135: Tarifa Mensual Total (US$) | D135: TelefonÍa fija | R135: Terminales de uso público | Z135: DATOS | AD135: Otros servicios adicionales
D136: Tarifa Mensual Básica (US$) | E136: Minutos incluidos ON NET (min.) | F136: Minutos incluidos OFF NET (min.) | G136: Tarifa por minuto de llamada Local (US$ por min.) | I136: Tarifa por minuto de llamada Nacional (US$ por min.) | K136: Tarifa por minuto de llamada Regional (US$ por min.) | M136: Tarifa por minuto de llamada LDI | O136: Tarifa por minuto de llamada a Móviles (US$ por min.) | R136: Tarifa por minuto de llamada Local (US$ por min.) | S136: Tarifa por minuto de llamada Nacional (US$ por min.) | T136: Tarifa por minuto de llamada Regional (US$ por min.) | U136: Tarifa por minuto de llamada LDI | W136: Tarifa por minuto de llamada a Móviles (US$ por min.) | Z136: Tarifa Mensual Básica (US$) | AA136: Kbps Incluidos en el Plan (Kbps) | AB136: Tarifa por Kbps dentro del Plan (US$ por Kbps) | AC136: Tarifa por Kbps adicional al Plan (US$ por Kbps)
G137: ON-NET | H137: OFF-NET | I137: ON-NET | J137: OFF-NET | K137: ON-NET | L137: OFF-NET | M137: Destino | N137: US$ por min. | O137: CONECEL S.A. | P137: OTECEL S.A. | Q137: CNT EP. | U137: Destino | V137: US$ por min. | W137: CONECEL S.A. | X137: OTECEL S.A. | Y137: CNT EP. | AD137: Detalle | AE137: Unidad de medida | AF137: Tarifa US$
A138: PLAN RESIDENCIAL BASICO | B138: 1 | M138: Cook Island , Maldiva Island y Timor del Este | N138: 0.85
A139: PLAN RESIDENCIAL 200 | B139: 5 | M139: Cook Island , Maldiva Island y Timor del Este | N139: 0.85
A140: PLAN RESIDENCIAL 200 | B140: 18 | M140: Cook Island , Maldiva Island y Timor del Este | N140: 0.85
A141: PLAN RESIDENCIAL 500 | B141: 6 | M141: Cook Island , Maldiva Island y Timor del Este | N141: 0.85
A142: PLAN RESIDENCIAL 500 | B142: 19 | M142: Cook Island , Maldiva Island y Timor del Este | N142: 0.85
A143: PLAN RESIDENCIAL 2PLAY | B143: 7 | M143: Cook Island , Maldiva Island y Timor del Este | N143: 0.85
A144: PLAN VOZ 500 | B144: 22 | M144: Cook Island , Maldiva Island y Timor del Este | N144: 0.85
A145: PLAN VOZ 900 | B145: 23 | M145: Cook Island , Maldiva Island y Timor del Este | N145: 0.85
A146: PLAN VOZ BASICO PLUS | B146: 33 | M146: Cook Island , Maldiva Island y Timor del Este | N146: 0.85
A147: PLAN VOZ 1750 | B147: 33 | M147: Cook Island , Maldiva Island y Timor del Este | N147: 0.85
A148: PLAN VOZ 2200 | B148: 34 | M148: Cook Island , Maldiva Island y Timor del Este | N148: 0.85
A149: PLAN VOZ 250 | B149: 56 | M149: Cook Island , Maldiva Island y Timor del Este | N149: 0.85
A150: PLAN VOZ 150 | B150: 71 | M150: Cook Island , Maldiva Island y Timor del Este | N150: 0.85
A151: PLAN VOZ 550 | B151: 57 | M151: Cook Island , Maldiva Island y Timor del Este | N151: 0.85
A152: PLAN ESPECIAL 100 | B152: 72 | M152: Cook Island , Maldiva Island y Timor del Este | N152: 0.85
A153: TRONCAL IP COMERCIAL 60 | B153: 58 | M153: Cook Island , Maldiva Island y Timor del Este | N153: 0.85
A154: PLAN CALL CENTER SIP 30 | B154: 68 | M154: Cook Island , Maldiva Island y Timor del Este | N154: 0.85
A155: PLAN CALL CENTER ISDN PRI 30 | B155: 67 | M155: Cook Island , Maldiva Island y Timor del Este | N155: 0.85
A156: PLAN CALL CENTER IP-ISDN 60 | B156: 65 | M156: Cook Island , Maldiva Island y Timor del Este | N156: 0.85
A157: PLAN CALL CENTER SIP 60 | B157: 66 | M157: Cook Island , Maldiva Island y Timor del Este | N157: 0.85
A158: PLAN CALL CENTER SIP 120 | B158: 69 | M158: Cook Island , Maldiva Island y Timor del Este | N158: 0.85
A159: PLAN CALL CENTER SIP 300 | B159: 70 | M159: Cook Island , Maldiva Island y Timor del Este | N159: 0.85
A160: PLAN COMERCIAL BASICO | B160: 16 | M160: Cook Island , Maldiva Island y Timor del Este | N160: 0.85
A161: PLAN COMERCIAL BASICO | B161: 52 | M161: Cook Island , Maldiva Island y Timor del Este | N161: 0.85
A162: PLAN COMERCIAL BASICO | B162: 35 | M162: Cook Island , Maldiva Island y Timor del Este | N162: 0.85
A163: PLAN COMERCIAL 200 | B163: 40 | M163: Cook Island , Maldiva Island y Timor del Este | N163: 0.85
A164: PLAN COMERCIAL 500 | B164: 36 | M164: Cook Island , Maldiva Island y Timor del Este | N164: 0.85
A165: PLAN COMERCIAL 500 | B165: 60 | M165: Cook Island , Maldiva Island y Timor del Este | N165: 0.85
A166: PLAN COMERCIAL 500 | B166: 21 | M166: Cook Island , Maldiva Island y Timor del Este | N166: 0.85
A167: PLAN COMERCIAL 2PLAY | B167: 9 | M167: Cook Island , Maldiva Island y Timor del Este | N167: 0.85
A168: PLAN COMERCIAL CALL CENTER | B168: 10 | M168: Cook Island , Maldiva Island y Timor del Este | N168: 0.85
A169: PLAN COMERCIAL FLEX | B169: 20 | M169: Cook Island , Maldiva Island y Timor del Este | N169: 0.85
A170: PLAN COMERCIAL FLEX | B170: 29 | M170: Cook Island , Maldiva Island y Timor del Este | N170: 0.85
A171: PLAN COMERCIAL FLEX | B171: 38 | M171: Cook Island , Maldiva Island y Timor del Este | N171: 0.85
A172: TRONCAL COMERCIAL | B172: 42 | M172: Cook Island , Maldiva Island y Timor del Este | N172: 0.85
A173: TRONCAL COMERCIAL | B173: 11 | M173: Cook Island , Maldiva Island y Timor del Este | N173: 0.85
A174: TRONCAL IP COMERCIAL 30 | B174: 46 | M174: Cook Island , Maldiva Island y Timor del Este | N174: 0.85
A175: TRONCAL IP COMERCIAL 30 | B175: 13 | M175: Cook Island , Maldiva Island y Timor del Este | N175: 0.85
A176: TRONCAL IP COMERCIAL 5 | B176: 14 | M176: Cook Island , Maldiva Island y Timor del Este | N176: 0.85
A177: TRONCAL IP COMERCIAL 5 | B177: 47 | M177: Cook Island , Maldiva Island y Timor del Este | N177: 0.85
A178: TRONCAL IP COMERCIAL 15 | B178: 59 | M178: Cook Island , Maldiva Island y Timor del Este | N178: 0.85
A179: PLAN TELEFONIA LOCUTORIO | B179: 37 | M179: Cook Island , Maldiva Island y Timor del Este | N179: 0.85
A180: PLAN TELEFONIA LOCUTORIO | B180: 41 | M180: Cook Island , Maldiva Island y Timor del Este | N180: 0.85
A181: PLAN TELEFONIA LOCUTORIO | B181: 50 | M181: Cook Island , Maldiva Island y Timor del Este | N181: 0.85
A182: TRONCAL COMERCIAL IP ISDN PRI | B182: 46 | M182: Cook Island , Maldiva Island y Timor del Este | N182: 0.85
A183: TRONCAL COMERCIAL IP ISDN PRI 60 | B183: 58 | M183: Cook Island , Maldiva Island y Timor del Este | N183: 0.85
A184: TRONCAL COMERCIAL ISDN PRI | B184: 42 | M184: Cook Island , Maldiva Island y Timor del Este | N184: 0.85
C186: 1e-33 | M186: 1e-33 | U186: 1e-33
A187: Destinos que incluyen cargos de Interconexión: | B187: Internacionales
A188: Tarifas incluyen impuestos aplicables de Ley: | B188: Se debe agregar IVA
A191: FORMATO RT-PLT-02: PLANES DE TELEFONÍA FIJA
A193: Nombre del Plan Tarifario: | B193: CHILE RURAL
A194: Fecha de entrada en vigencia del Plan/Tarifa: | B194: 2013-04-05
A195: Condiciones generales del Plan/Tarifa: | B195: Se apertura el destino Internacional "Chile Rural" cuya tarifa será de US$ 0,65 + IVA, aplica a los planes detallados a continuación con sus respectivos codigos
A196: Descripción del Plan/Tarifa (Servicios que incluye, etc.) | B196: Código de Identificación del Plan o Tarifa ( Sistema de Medición de Facturación) | C196: Tarifa Mensual Total (US$) | D196: TelefonÍa fija | R196: Terminales de uso público | Z196: DATOS | AD196: Otros servicios adicionales
D197: Tarifa Mensual Básica (US$) | E197: Minutos incluidos ON NET (min.) | F197: Minutos incluidos OFF NET (min.) | G197: Tarifa por minuto de llamada Local (US$ por min.) | I197: Tarifa por minuto de llamada Nacional (US$ por min.) | K197: Tarifa por minuto de llamada Regional (US$ por min.) | M197: Tarifa por minuto de llamada LDI | O197: Tarifa por minuto de llamada a Móviles (US$ por min.) | R197: Tarifa por minuto de llamada Local (US$ por min.) | S197: Tarifa por minuto de llamada Nacional (US$ por min.) | T197: Tarifa por minuto de llamada Regional (US$ por min.) | U197: Tarifa por minuto de llamada LDI | W197: Tarifa por minuto de llamada a Móviles (US$ por min.) | Z197: Tarifa Mensual Básica (US$) | AA197: Kbps Incluidos en el Plan (Kbps) | AB197: Tarifa por Kbps dentro del Plan (US$ por Kbps) | AC197: Tarifa por Kbps adicional al Plan (US$ por Kbps)
G198: ON-NET | H198: OFF-NET | I198: ON-NET | J198: OFF-NET | K198: ON-NET | L198: OFF-NET | M198: Destino | N198: US$ por min. | O198: CONECEL S.A. | P198: OTECEL S.A. | Q198: CNT EP. | U198: Destino | V198: US$ por min. | W198: CONECEL S.A. | X198: OTECEL S.A. | Y198: CNT EP. | AD198: Detalle | AE198: Unidad de medida | AF198: Tarifa US$
A199: PLAN RESIDENCIAL BASICO | B199: 1048 | M199: Chile Rural | N199: 0.5
A200: PLAN RESIDENCIAL 200 | B200: 431 | M200: Chile Rural | N200: 0.5
A201: PLAN RESIDENCIAL 500 | B201: 432 | M201: Chile Rural | N201: 0.5
A202: PLAN RESIDENCIAL 2PLAY | B202: 132 | M202: Chile Rural | N202: 0.5
A203: PLAN RESIDENCIAL 200 | B203: 431 | M203: Chile Rural | N203: 0.5
A204: PLAN RESIDENCIAL 500 | B204: 0432 | M204: Chile Rural | N204: 0.5
A205: PLAN VOZ 500 | B205: 0468 | M205: Chile Rural | N205: 0.5
A206: PLAN VOZ 900 | B206: 0476 | M206: Chile Rural | N206: 0.5
A207: PLAN VOZ BASICO PLUS | B207: 663 | M207: Chile Rural | N207: 0.5
A208: PLAN VOZ 1750 | B208: 0550 | M208: Chile Rural | N208: 0.5
A209: PLAN VOZ 2200 | B209: 0551 | M209: Chile Rural | N209: 0.5
A210: PLAN VOZ 250 | B210: 0898 | M210: Chile Rural | N210: 0.5
A211: PLAN VOZ 550 | B211: 0897 | M211: Chile Rural | N211: 0.5
A212: PLAN ESPECIAL 100 | B212: 1123 | M212: Chile Rural | N212: 0.5
A213: PLAN VOZ 150 | B213: 1111 | M213: Chile Rural | N213: 0.5
A214: Troncal IP Comercial 60 | B214: 901 | M214: Chile Rural | N214: 0.5
A215: Plan Call Center SIP 30 | B215: 1105 | M215: Chile Rural | N215: 0.5
A216: Plan Call Center ISDN PRI 30 | B216: 1104 | M216: Chile Rural | N216: 0.5
A217: Plan Call Center IP-ISDN 60 | B217: 1102 | M217: Chile Rural | N217: 0.5
A218: Plan Call Center SIP 60 | B218: 1103 | M218: Chile Rural | N218: 0.5
A219: Plan Call Center SIP 120 | B219: 1120 | M219: Chile Rural | N219: 0.5
A220: Plan Call Center SIP 300 | B220: 1110 | M220: Chile Rural | N220: 0.5
A221: Plan Comercial Basico | B221: 135 | M221: Chile Rural | N221: 0.5
A222: Plan Comercial Basico | B222: 430 | M222: Chile Rural | N222: 0.5
A223: Plan Comercial Basico | B223: 879 | M223: Chile Rural | N223: 0.5
A224: Plan Comercial 200 | B224: 741 | M224: Chile Rural | N224: 0.5
A225: Plan Comercial 500 | B225: 478 | M225: Chile Rural | N225: 0.5
A226: Plan Comercial 500 | B226: 945 | M226: Chile Rural | N226: 0.5
A227: Plan Comercial 2Play | B227: 133 | M227: Chile Rural | N227: 0.5
A228: Plan Comercial Call Center | B228: 6 | M228: Chile Rural | N228: 0.5
A229: Plan Comercial Flex | B229: 1049 | M229: Chile Rural | N229: 0.5
A230: Plan Comercial Flex | B230: 435 | M230: Chile Rural | N230: 0.5
A231: Plan Comercial Flex | B231: 530 | M231: Chile Rural | N231: 0.5
A232: Troncal Comercial | B232: 736 | M232: Chile Rural | N232: 0.5
A233: Troncal Comercial | B233: 8 | M233: Chile Rural | N233: 0.5
... 2942 more rows

Sheet Level 3Ecuador
A2: Servicio de Telefonía Fija
A3: Plan Tarifario LEVEL 3 ECUADOR S.A.
A8: =+Inicio!B8 -> Fecha de publicación: junio de 2013
A13: FORMATO RT-PLT-02: PLANES DE TELEFONÍA FIJA
A15: Nombre del Plan Tarifario: | B15: Tarifario Larga Distancia Internacional 1
A16: Fecha de entrada en vigencia del Plan/Tarifa: | B16: 2012-02-16
A17: Condiciones generales del Plan/Tarifa: | B17: TARIFAS PARA LARGA DISTANCIA INTERNACIONAL
A18: Descripción del Plan/Tarifa (Servicios que incluye, etc.) | B18: Código de Identificación del Plan o Tarifa ( Sistema de Medición de Facturación) | C18: Tarifa Mensual Total (US$) | D18: TelefonÍa fija | R18: Terminales de uso público | Z18: DATOS | AD18: Otros servicios adicionales
D19: Tarifa Mensual Básica (US$) | E19: Minutos incluidos ON NET (min.) | F19: Minutos incluidos OFF NET (min.) | G19: Tarifa por minuto de llamada Local (US$ por min.) | I19: Tarifa por minuto de llamada Nacional (US$ por min.) | K19: Tarifa por minuto de llamada Regional (US$ por min.) | M19: Tarifa por minuto de llamada LDI | O19: Tarifa por minuto de llamada a Móviles (US$ por min.) | R19: Tarifa por minuto de llamada Local (US$ por min.) | S19: Tarifa por minuto de llamada Nacional (US$ por min.) | T19: Tarifa por minuto de llamada Regional (US$ por min.) | U19: Tarifa por minuto de llamada LDI | W19: Tarifa por minuto de llamada a Móviles (US$ por min.) | Z19: Tarifa Mensual Básica (US$) | AA19: Kbps Incluidos en el Plan (Kbps) | AB19: Tarifa por Kbps dentro del Plan (US$ por Kbps) | AC19: Tarifa por Kbps adicional al Plan (US$ por Kbps)
G20: ON-NET | H20: OFF-NET | I20: ON-NET | J20: OFF-NET | K20: ON-NET | L20: OFF-NET | M20: Destino | N20: US$ por min. | O20: CONECEL S.A. | P20: OTECEL S.A. | Q20: CNT EP. | U20: Destino | V20: US$ por min. | W20: CONECEL S.A. | X20: OTECEL S.A. | Y20: CNT EP. | AD20: Detalle | AE20: Unidad de medida | AF20: Tarifa US$
A21: Larga Distancia Internacional Base (LDI Base) | B21: LDICNT00 | C21: 0 | D21: 0 | E21: 0 | F21: 0 | M21: Grupo Africa países principales | N21: 0.45
A22: Larga Distancia Internacional Base (LDI Base) | B22: LDICNT00 | C22: 0 | D22: 0 | E22: 0 | F22: 0 | M22: Grupo América del Norte países principales | N22: 0.15
A23: Larga Distancia Internacional Base (LDI Base) | B23: LDICNT00 | C23: 0 | D23: 0 | E23: 0 | F23: 0 | M23: Grupo América Central países principales | N23: 0.24
A24: Larga Distancia Internacional Base (LDI Base) | B24: LDICNT00 | C24: 0 | D24: 0 | E24: 0 | F24: 0 | M24: Grupo América del Sur países principales y secundarios | N24: 0.18
A25: Larga Distancia Internacional Base (LDI Base) | B25: LDICNT00 | C25: 0 | D25: 0 | E25: 0 | F25: 0 | M25: Grupo América del Sur Móviles | N25: 0.3
A26: Larga Distancia Internacional Base (LDI Base) | B26: LDICNT00 | C26: 0 | D26: 0 | E26: 0 | F26: 0 | M26: Grupo Asia países principales | N26: 0.4
A27: Larga Distancia Internacional Base (LDI Base) | B27: LDICNT00 | C27: 0 | D27: 0 | E27: 0 | F27: 0 | M27: Grupo Europa países principales | N27: 0.3
A28: Larga Distancia Internacional Base (LDI Base) | B28: LDICNT00 | C28: 0 | D28: 0 | E28: 0 | F28: 0 | M28: Grupo Europa países secundarios | N28: 0.39
A29: Larga Distancia Internacional Base (LDI Base) | B29: LDICNT00 | C29: 0 | D29: 0 | E29: 0 | F29: 0 | M29: Grupo Europa móviles | N29: 0.45
A30: Larga Distancia Internacional Base (LDI Base) | B30: LDICNT00 | C30: 0 | D30: 0 | E30: 0 | F30: 0 | M30: Grupo Oceanía países principales | N30: 0.45
A31: Larga Distancia Internacional Base (LDI Base) | B31: LDICNT00 | C31: 0 | D31: 0 | E31: 0 | F31: 0 | M31: Grupo Resto del Mundo | N31: 0.69
A32: Larga Distancia Internacional Base (LDI Base) | B32: LDICNT00 | C32: 0 | D32: 0 | E32: 0 | F32: 0 | M32: Grupo Cuba | N32: 2.1
A33: Larga Distancia Internacional Base (LDI Base) | B33: LDICNT00 | C33: 0 | D33: 0 | E33: 0 | F33: 0 | M33: Grupo Especiales | N33: 15
C35: 1e-33 | M35: 1e-33 | U35: 1e-33
A36: Destinos que incluyen cargos de Interconexión: | B36: Todos
A37: Tarifas incluyen impuestos aplicables de Ley: | B37: Las tarifas de los destinos no incluye ningún impuesto aplicable de ley
A40: NUEVOS PLANES COMERCIALES CAT C
A41: Nomenclatura | B41: Unidad US $ | C41: PLAN C1 | D41: PLAN C2 | E41: PLAN C3
A42: Derecho de Inscripción | B42: US $ | C42: 0 | D42: 0 | E42: 0
A43: Pensión Básica Mensual | B43: USD / mes | C43: 0 | D43: 0 | E43: 0
A44: Tarifa de uso Local | B44: USD / min. | C44: 0.019 | D44: 0.02 | E44: 0.02
A45: Tarifa de uso Larga Distancia Nacional | B45: USD / min. | C45: 0.025 | D45: 0.025 | E45: 0.035
A46: Tarifa de uso a telefonía Móvil | B46: USD / min. | C46: 0.11 | D46: 0.113 | E46: 0.12
A47: Vigencia: 14 de septiembre de 2010
A48: Tarifas más impuestos aplicables de ley
A52: TARIFAS - APLICABLES A PARTIR DEL 14 DE JULIO DE 2009 PARA CATEGORÍA C PLAN COMERCIAL Plus 1
A53: Nomenclatura | B53: Unidad US $ | C53: Categoría C
A54: Derecho de Inscripción | B54: US $ | C54: 0
A55: Pensión Básica Mensual | B55: USD / mes | C55: 0
A56: Tarifa de uso Local | B56: USD / min. | C56: 0.025
A57: Tarifa de uso Larga Distancia Nacional | B57: USD / min. | C57: 0.025
A58: Tarifa de uso a telefonía Móvil | B58: USD / min. | C58: 0.125
A59: Vigencia: 14 de julio de 2009
A60: Tarifas más impuestos aplicables de ley
A63: TARIFAS - APLICABLES A PARTIR DEL 21 DE MAYO DE 2009 PARA CATEGORÍA C PLAN COMERCIAL Plus 3
A64: Nomenclatura | B64: Unidad US $ | C64: Categoría C
A65: Derecho de Inscripción | B65: US $ | C65: 0
A66: Pensión Básica Mensual | B66: USD / mes | C66: 0
A67: Tarifa de uso Local | B67: USD / min. | C67: 0.018
A68: Tarifa de uso Larga Distancia Nacional | B68: USD / min. | C68: 0.04
A69: Tarifa de uso a telefonía Móvil | B69: USD / min. | C69: 0.12
A70: Vigencia: 21 de mayo de 2009
A71: Tarifas más impuestos aplicables de ley
A74: TARIFAS - APLICABLES A PARTIR DEL 8 DE JUNIO DE 2009 PARA CATEGORÍA C PLAN COMERCIAL Plus 2
A75: Nomenclatura | B75: Unidad US $ | C75: Categoría C
A76: Derecho de Inscripción | B76: US $ | C76: 0
A77: Pensión Básica Mensual | B77: USD / mes | C77: 0
A78: Tarifa de uso Local | B78: USD / min. | C78: 0.019
A79: Tarifa de uso Larga Distancia Nacional | B79: USD / min. | C79: 0.04
A80: Tarifa de uso a telefonía Móvil | B80: USD / min. | C80: 0.11
A81: Vigencia: 8 de junio de 2009
A82: Tarifas más impuestos aplicables de ley
A85: TARIFAS - APLICABLES A PARTIR DEL 14 DE JULIO DE 2009 PARA CATEGORÍA C PLAN COMERCIAL Plus 1
A86: Nomenclatura | B86: Unidad US $ | C86: Categoría C
A87: Derecho de Inscripción | B87: US $ | C87: 0
A88: Pensión Básica Mensual | B88: USD / mes | C88: 0
A89: Tarifa de uso Local | B89: USD / min. | C89: 0.025
A90: Tarifa de uso Larga Distancia Regional | B90: USD / min. | C90: 0.025
A91: Tarifa de uso Larga Distancia Nacional | B91: USD / min. | C91: 0.025
A92: Tarifa de uso a telefonía Móvil | B92: USD / min. | C92: 0.125
A93: Vigencia: 14 de julio de 2009
A94: Tarifas más impuestos aplicables de ley
A97: TARIFAS - USO LOCAL, LARGA DISTANCIA NACIONAL Y MÓVIL
A98: Nomenclatura | B98: Unidad | C98: Cat. A | D98: Cat. B
A99: Derecho de Inscripción | B99: USD | C99: 38 | D99: 88
A100: Pensión Básica Mensual | B100: USD / mes | C100: 5.7 | D100: 8.5
A101: Tarifa de uso Local | B101: USD / min. | C101: 0.019 | D101: 0.019
A102: Tarifa de uso Larga Distancia Nacional | B102: USD / min. | C102: 0.02 | D102: 0.04
A103: Tarifa de uso a telefonía Móvil | B103: USD / min. | C103: 0.125 | D103: 0.125
A104: Promoción: Abonados de categoría A registrados desde el 1 hasta el 30 de marzo de 2010, se les aplica 500 minutos libres incluidos dentro de la pensión básica mensual.
A105: Tarifas más impuestos aplicables de ley
A108: TARIFAS Aplicables para Categoría A
A109: Nomenclatura | B109: Unidad | C109: Cat. A
A110: Derecho de Inscripción | B110: USD | C110: 38
A111: Pensión Básica Mensual | B111: USD / mes | C111: 5.7
A112: Tarifa de uso Local | B112: USD / min. | C112: 0.019
A113: Tarifa de uso Larga Distancia Nacional | B113: USD / min. | C113: 0.02
A114: Tarifa de usoLlamadas a Telefonía Móvil | B114: USD / min. | C114: 0.125
A115: Promoción: Abonados de categoría A registrados desde el 1 hasta el 30 de marzo de 2010, se les aplica 500 minutos libres incluidos dentro de la pensión básica mensual.
A116: Vigencia:
A117: Tarifas más impuestos aplicables de ley
A121: TARIFAS - Aplicables para Categoría A
A122: Nomenclatura | B122: Unidad | C122: Cat. A
A123: Derecho de Inscripción | B123: USD | C123: 38
A124: Pensión Básica Mensual | B124: USD / mes | C124: 5.7
A125: Tarifa de uso Local | B125: USD / min. | C125: 0.019
A126: Tarifa de uso Larga Distancia Nacional | B126: USD / min. | C126: 0.02
A127: Tarifa de usoLlamadas a Telefonía Móvil | B127: USD / min. | C127: 0.125
A128: Se aplica 500 minutos libres incluídos dentro de la pensión básica mensual, como promoción para todos los usuarios que se inscriban en esta categoría.
A129: Tarifas más impuestos aplicables de ley
A132: 1. Fuente: Level 3 Ecuador
A133: 2. No se incluye valor de los impuestos

Sheet Gráfico1
B2: Servicio de Telefonía Fija
B3: Tarifas Telefonía Fija - Comparativo entre tipos de llamada - por Categoría
B8: =+Inicio!B8 -> Fecha de publicación: junio de 2013

Sheet Gráfico2
B2: Servicio de Telefonía Fija
B3: Tarifas Telefonía Fija - Comparativo entre empresas - por Categoría
B8: =+Inicio!B8 -> Fecha de publicación: junio de 2013

Sheet Gráfico3
B2: Servicio de Telefonía Fija
B3: Tarifas Telefonía Fija - Pensión Básica Mensual
B8: =+Inicio!B8 -> Fecha de publicación: junio de 2013

Sheet Gráfico4
B2: Servicio de Telefonía Fija
B3: Evolución de Tarifas Fijo - Móvil Empresas Públicas
B8: =+Inicio!B8 -> Fecha de publicación: junio de 2013

Sheet Gráfico5
B2: Servicio de Telefonía Fija
B3: Evolución de Tarifas Fijo - Móvil Empresas Privadas
B8: =+Inicio!B8 -> Fecha de publicación: junio de 2013

Sheet Gráfico6
B2: Servicio de Telefonía Fija
B3: Derecho de Inscripción Promedio Ponderado - Categoría B Residencial 2000-2013
B8: =+Inicio!B8 -> Fecha de publicación: junio de 2013

Sheet Gráfico7
B2: Servicio de Telefonía Fija
B3: Llamada de 3 minutos promedio ponderado Categoría B - Residencial 2000-2013
B8: =+Inicio!B8 -> Fecha de publicación: junio de 2013
